Workbook

Sheet AdditionalFile1
A1: Additional File 1. Log2TPM data for each gene (GeneID) in the V3 annotation. Additional columns are individual samples for BOD and RNO followed by a °Brix value and a replicate number (e.g. R1). Final two columns are average differences between the high and low °Brix samples for each location.
A2: GeneID | B2: BOD19_5R1 | C2: BOD19_5R2 | D2: BOD19_5R3 | E2: BOD20_5R1 | F2: BOD20_5R2 | G2: BOD20_5R3 | H2: BOD21_5R1 | I2: BOD21_5R2 | J2: BOD21_5R3 | K2: BOD22_5R1 | L2: BOD22_5R2 | M2: BOD22_5R3 | N2: RNO20R1 | O2: RNO20R2 | P2: RNO20R3 | Q2: RNO22R1 | R2: RNO22R2 | S2: RNO22R3 | T2: RNO24R1 | U2: RNO24R2 | V2: RNO24R3 | W2: RNO26R1 | X2: RNO26R2 | Y2: RNO26R3 | Z2: BOD.difference | AA2: RNO.difference
A3: Vitvi00g00338 | B3: 1.854630441 | C3: 0.8013200385 | D3: 1.128563651 | E3: 1.657363125 | F3: 0.7822215492 | G3: 1.312196804 | H3: 1.185011577 | I3: 1.29149442 | J3: 0 | K3: 1.321586434 | L3: 1.717936028 | M3: 2.10983722 | N3: 2.60323341 | O3: 0 | P3: 0 | Q3: 0 | R3: 0 | S3: 1.272544449 | T3: 0 | U3: 0.7339557288 | V3: 2.058178687 | W3: 1.189702865 | X3: 1.05026683 | Y3: 1.5222772 | Z3: =AVERAGE(K3:M3)-AVERAGE(B3:D3) -> 0.454948517 | AA3: =AVERAGE(W3:Y3)-AVERAGE(N3:P3) -> 0.3863378285
A4: Vitvi00g00339 | B4: 0 | C4: 0 | D4: 0 | E4: 0 | F4: 0 | G4: 0.03741163275 | H4: 0 | I4: 0 | J4: 0 | K4: 0 | L4: 0 | M4: 0 | N4: 0 | O4: 0 | P4: 0 | Q4: 0 | R4: 0.03283704051 | S4: 0.216233891 | T4: 0.04138421273 | U4: 0 | V4: 0 | W4: 0 | X4: 0 | Y4: 0 | Z4: =AVERAGE(K4:M4)-AVERAGE(B4:D4) -> 0 | AA4: =AVERAGE(W4:Y4)-AVERAGE(N4:P4) -> 0
A5: Vitvi00g00340 | B5: 0.684751631 | C5: 0.619442078 | D5: 0 | E5: 0.3013873418 | F5: 0.4536994628 | G5: 0.1923669588 | H5: 0.6719531632 | I5: 0.8908110986 | J5: 0.560162704 | K5: 1.103576205 | L5: 0.3158188379 | M5: 0.663765573 | N5: 0.3945792286 | O5: 0.6368262431 | P5: 0.8841143109 | Q5: 1.105453437 | R5: 1.140600754 | S5: 0.9356596585 | T5: 0.762382034 | U5: 0.8589261025 | V5: 0.3132381639 | W5: 0.9718792522 | X5: 0.5529502186 | Y5: 0.7356466756 | Z5: 0.2596556356 | AA5: 0.1149854546
A6: Vitvi00g00341 | B6: 0 | C6: 0 | D6: 0 | E6: 0 | F6: 0 | G6: 0 | H6: 0 | I6: 0 | J6: 0 | K6: 0 | L6: 0 | M6: 0 | N6: 0 | O6: 0 | P6: 0 | Q6: 0 | R6: 0.01082540118 | S6: 0 | T6: 0 | U6: 0 | V6: 0 | W6: 0 | X6: 0 | Y6: 0 | Z6: 0 | AA6: 0
A7: Vitvi00g00342 | B7: 0 | C7: 0.3576360447 | D7: 0 | E7: 0 | F7: 0 | G7: 0 | H7: 0.1456737569 | I7: 0.6752354487 | J7: 0.1247829217 | K7: 0.3806779029 | L7: 0.202520907 | M7: 0.195647694 | N7: 0 | O7: 0 | P7: 0.6510915543 | Q7: 0.1970525156 | R7: 0.2864475094 | S7: 0 | T7: 0.1758846716 | U7: 0.3263204238 | V7: 0 | W7: 0.488490979 | X7: 0 | Y7: 0 | Z7: 0.1404034864 | AA7: -0.05420019174
A8: Vitvi00g00343 | B8: 0 | C8: 2.127161005 | D8: 0.847194938 | E8: 2.278696022 | F8: 1.551737073 | G8: 0 | H8: 0 | I8: 2.04651999 | J8: 0 | K8: 0 | L8: 0 | M8: 0 | N8: 2.853895092 | O8: 0 | P8: 1.920713689 | Q8: 2.702253914 | R8: 0 | S8: 1.697120707 | T8: 2.664830298 | U8: 9.46E-06 | V8: 2.066535699 | W8: 1.305285132 | X8: 0 | Y8: 2.584425959 | Z8: -0.9914519809 | AA8: -0.2949658967
A9: Vitvi00g00441 | B9: 0 | C9: 0.2080754216 | D9: 0 | E9: 0.5360136339 | F9: 1.527345529 | G9: 0 | H9: 0.1257124232 | I9: 0 | J9: 0 | K9: 2.63E-06 | L9: 0 | M9: 0 | N9: 0 | O9: 1.066639135 | P9: 0.4552726007 | Q9: 0 | R9: 1.192384875 | S9: 0 | T9: 0 | U9: 0 | V9: 0 | W9: 0.5666845695 | X9: 0 | Y9: 0 | Z9: -0.06935759621 | AA9: -0.3184090553
A10: Vitvi00g00442 | B10: 1.351037947 | C10: 1.233393202 | D10: 1.145306422 | E10: 1.52431863 | F10: 1.275248346 | G10: 1.129116911 | H10: 1.49218535 | I10: 1.38073298 | J10: 1.406314073 | K10: 1.439966527 | L10: 1.610220535 | M10: 1.414711883 | N10: 0.6412418199 | O10: 0.7688327363 | P10: 1.36213858 | Q10: 1.166518374 | R10: 0.6540212535 | S10: 1.592071194 | T10: 1.325247063 | U10: 1.255121951 | V10: 1.249959423 | W10: 1.041743658 | X10: 0.5692189505 | Y10: 1.070068408 | Z10: 0.2450537914 | AA10: -0.03039403989
A11: Vitvi00g00443 | B11: 1.787816306 | C11: 0.7254540991 | D11: 0.525646304 | E11: 0.7598624204 | F11: 0.6659439544 | G11: 0 | H11: 0.4499903657 | I11: 1.363404174 | J11: 0 | K11: 0 | L11: 1.44699567 | M11: 1.706780784 | N11: 0.6525160908 | O11: 1.735114517 | P11: 1.947045098 | Q11: 0.7242181858 | R11: 1.329060501 | S11: 0.7369265231 | T11: 1.321138984 | U11: 0 | V11: 0.705084992 | W11: 0.3943285939 | X11: 1.444379815 | Y11: 1.080203214 | Z11: 0.03828658162 | AA11: -0.4719213611
A12: Vitvi00g00444 | B12: 0.0004686686126 | C12: 2.176034916 | D12: 2.34104932 | E12: 1.764079926 | F12: 1.980131152 | G12: 1.92777065 | H12: 2.272791391 | I12: 1.714954399 | J12: 1.811416764 | K12: 2.112217682 | L12: 2.013007314 | M12: 1.337230818 | N12: 1.70271653 | O12: 0.9365152844 | P12: 1.111409352 | Q12: 2.013106955 | R12: 2.061122245 | S12: 2.093272643 | T12: 1.480342814 | U12: 2.280775724 | V12: 2.156084433 | W12: 2.820931467 | X12: 1.982293153 | Y12: 2.0952668 | Z12: 0.3149676364 | AA12: 1.049283418
A13: Vitvi00g00446 | B13: 0 | C13: 0 | D13: 0 | E13: 0 | F13: 0 | G13: 0 | H13: 1.610171632 | I13: 1.097604231 | J13: 0.977691205 | K13: 0 | L13: 1.425424775 | M13: 0 | N13: 0 | O13: 0 | P13: 0 | Q13: 0 | R13: 0 | S13: 1.585750545 | T13: 0 | U13: 0 | V13: 0 | W13: 0 | X13: 0 | Y13: 0 | Z13: 0.4751415917 | AA13: 0
A14: Vitvi00g00447 | B14: 0.2383818686 | C14: 0 | D14: 0.1946283064 | E14: 0 | F14: 0.3338834869 | G14: 0 | H14: 0.3888333537 | I14: 1.247845943 | J14: 0 | K14: 0.2524834173 | L14: 0.9267317926 | M14: 0.2157575035 | N14: 0.2303961147 | O14: 0.5628364723 | P14: 0.3602915664 | Q14: 0 | R14: 0 | S14: 0.6521005924 | T14: 0.2687853686 | U14: 0.3289932865 | V14: 0 | W14: 0 | X14: 0.4874935417 | Y14: 0 | Z14: 0.3206541795 | AA14: -0.2220102039
A15: Vitvi00g00448 | B15: 0 | C15: 3.35539871 | D15: 0 | E15: 0 | F15: 0 | G15: 0 | H15: 0 | I15: 0 | J15: 0 | K15: 0 | L15: 0 | M15: 0 | N15: 0 | O15: 0 | P15: 0 | Q15: 0 | R15: 0 | S15: 0 | T15: 0 | U15: 0 | V15: 3.399799911 | W15: 0 | X15: 0 | Y15: 0 | Z15: -1.118466237 | AA15: 0
A16: Vitvi00g00449 | B16: 0 | C16: 0 | D16: 0.533370056 | E16: 0 | F16: 0.5957808975 | G16: 0 | H16: 0 | I16: 0.6589360355 | J16: 0 | K16: 0 | L16: 0 | M16: 0.5964198074 | N16: 0 | O16: 0 | P16: 0 | Q16: 0 | R16: 0 | S16: 0 | T16: 0 | U16: 0 | V16: 0 | W16: 0 | X16: 0.8442932178 | Y16: 0 | Z16: 0.0210165838 | AA16: 0.2814310726
A17: Vitvi00g00450 | B17: 0.4131148515 | C17: 0.7173400193 | D17: 1.168965389 | E17: 1.409384929 | F17: 0.4410599015 | G17: 0.7744230925 | H17: 0.9464365465 | I17: 1.184964828 | J17: 0.4125857467 | K17: 0.8953572357 | L17: 0.9779495674 | M17: 0.8002003311 | N17: 0.4549530401 | O17: 1.019021051 | P17: 1.102407075 | Q17: 0.3384142099 | R17: 1.242890258 | S17: 0.3682148539 | T17: 1.244385528 | U17: 0.5435792255 | V17: 0.4059397578 | W17: 1.186482252 | X17: 0.8305968797 | Y17: 1.548016886 | Z17: 0.1246956249 | AA17: 0.3295716173
A18: Vitvi00g00491 | B18: 0 | C18: 0 | D18: 0 | E18: 0 | F18: 0 | G18: 0 | H18: 0 | I18: 0 | J18: 0 | K18: 0 | L18: 0 | M18: 0 | N18: 0 | O18: 0 | P18: 0 | Q18: 0 | R18: 0 | S18: 0 | T18: 0 | U18: 0 | V18: 0 | W18: 0 | X18: 0 | Y18: 0 | Z18: 0 | AA18: 0
A19: Vitvi00g00492 | B19: 1.133807173 | C19: 0.9250798512 | D19: 1.353093515 | E19: 1.19370981 | F19: 1.134038005 | G19: 1.613869442 | H19: 1.306967265 | I19: 1.168237891 | J19: 1.516974814 | K19: 1.763715124 | L19: 1.579519216 | M19: 1.398256226 | N19: 0.5275636686 | O19: 1.20660237 | P19: 1.582674319 | Q19: 1.172172882 | R19: 0.01051926496 | S19: 0.7662949958 | T19: 1.706767564 | U19: 0.9592017327 | V19: 1.099249366 | W19: 1.796022497 | X19: 0.1560472891 | Y19: 1.756369384 | Z19: 0.4431700091 | AA19: 0.1305329373
A20: Vitvi00g00493 | B20: 0 | C20: 0.7260750563 | D20: 0 | E20: 0.8776911664 | F20: 0 | G20: 0 | H20: 0 | I20: 0 | J20: 0.7725623584 | K20: 0 | L20: 0 | M20: 0 | N20: 0.8292441924 | O20: 0 | P20: 0 | Q20: 0 | R20: 0 | S20: 0 | T20: 0.9241510803 | U20: 0 | V20: 0 | W20: 0 | X20: 0 | Y20: 1.266672304 | Z20: -0.2420250188 | AA20: 0.1458093706
A21: Vitvi00g00494 | B21: 0.6160174243 | C21: 0.3900216142 | D21: 0.6685656079 | E21: 0.5370645167 | F21: 0.9896253133 | G21: 0.4918799429 | H21: 1.071506728 | I21: 0.2732763051 | J21: 0.8174973225 | K21: 0.439658828 | L21: 0.3067977648 | M21: 0.554599521 | N21: 1.139782728 | O21: 1.393791092 | P21: 0.5505876933 | Q21: 0.2174177751 | R21: 0.5312107041 | S21: 0.4436355076 | T21: 0 | U21: 0.9232160056 | V21: 0 | W21: 0.5762303802 | X21: 0.8701025994 | Y21: 1.251399906 | Z21: -0.1245161775 | AA21: -0.1288095427
A22: Vitvi00g00495 | B22: 2.093251268 | C22: 0 | D22: 0.5849081938 | E22: 0.7703250244 | F22: 1.088360412 | G22: 1.429616307 | H22: 1.894211165 | I22: 0 | J22: 1.851137858 | K22: 0.6238814453 | L22: 1.601579773 | M22: 1.668359547 | N22: 0 | O22: 0 | P22: 1.573466689 | Q22: 1.933038027 | R22: 0.86444625 | S22: 2.003434625 | T22: 1.596408076 | U22: 2.059578578 | V22: 1.095699164 | W22: 1.311644643 | X22: 0.9123694277 | Y22: 1.682895385 | Z22: 0.4052204346 | AA22: 0.7778142557
A23: Vitvi00g00496 | B23: 0.6144064226 | C23: 0.4079086348 | D23: 1.144298959 | E23: 1.56896199 | F23: 1.037803632 | G23: 1.280156345 | H23: 1.644969906 | I23: 1.558738228 | J23: 1.415473102 | K23: 1.114180113 | L23: 0.8716658878 | M23: 1.797130955 | N23: 1.001329162 | O23: 1.089110677 | P23: 0.9284491583 | Q23: 0.5561766616 | R23: 1.089749909 | S23: 0.5677942392 | T23: 1.041777901 | U23: 1.401896684 | V23: 1.196525761 | W23: 1.499726468 | X23: 1.401110791 | Y23: 1.820729586 | Z23: 0.5387876466 | AA23: 0.5675592825
A24: Vitvi00g00542 | B24: 0 | C24: 0 | D24: 0 | E24: 0 | F24: 0 | G24: 0 | H24: 0 | I24: 0 | J24: 0 | K24: 1.030735701 | L24: 0 | M24: 1.106974726 | N24: 0 | O24: 0 | P24: 0 | Q24: 0 | R24: 0 | S24: 0 | T24: 0 | U24: 0 | V24: 0 | W24: 0 | X24: 0 | Y24: 0 | Z24: 0.7125701423 | AA24: 0
A25: Vitvi00g00543 | B25: 1.311252094 | C25: 0.9857629271 | D25: 1.554856472 | E25: 1.354844732 | F25: 1.350115412 | G25: 1.051137882 | H25: 1.634344355 | I25: 1.949264503 | J25: 2.023519395 | K25: 2.559375857 | L25: 2.426941755 | M25: 3.103144035 | N25: 1.028043016 | O25: 1.763999001 | P25: 0.9545872494 | Q25: 0.8537088317 | R25: 1.743418144 | S25: 0 | T25: 1.206651195 | U25: 1.804022211 | V25: 2.250718436 | W25: 2.064338752 | X25: 1.397303013 | Y25: 1.023810111 | Z25: 1.412530051 | AA25: 0.2462742033
A26: Vitvi00g00544 | B26: 0.3100183993 | C26: 0.4250696643 | D26: 0.8123962357 | E26: 0 | F26: 0 | G26: 0.9473713459 | H26: 0.3356586566 | I26: 1.176766463 | J26: 0.6911908094 | K26: 1.075487256 | L26: 0.6035940538 | M26: 0.5108655679 | N26: 0.8790195154 | O26: 0.4693416846 | P26: 0 | Q26: 0 | R26: 0 | S26: 0 | T26: 0.8351649322 | U26: 0 | V26: 0 | W26: 0.5718410737 | X26: 0.5401461451 | Y26: 0.6568168074 | Z26: 0.2141541929 | AA26: 0.1401476088
A27: Vitvi00g00545 | B27: 0.2485221853 | C27: 0 | D27: 0.2271744211 | E27: 0 | F27: 0.2531493925 | G27: 0 | H27: 0.2456392949 | I27: 0 | J27: 0.2419271542 | K27: 0.2531781005 | L27: 0 | M27: 0 | N27: 0 | O27: 0 | P27: 0 | Q27: 0 | R27: 0 | S27: 0 | T27: 0.3118577475 | U27: 0.2010959594 | V27: 0 | W27: 0 | X27: 0 | Y27: 0.7974498602 | Z27: -0.07417283529 | AA27: 0.2658166201
A28: Vitvi00g00547 | B28: 0 | C28: 0 | D28: 0 | E28: 0 | F28: 0 | G28: 0 | H28: 0 | I28: 0 | J28: 0 | K28: 0 | L28: 0 | M28: 1.642075147 | N28: 0 | O28: 0 | P28: 0 | Q28: 0 | R28: 0 | S28: 0 | T28: 0 | U28: 0 | V28: 0 | W28: 0 | X28: 0 | Y28: 0 | Z28: 0.5473583822 | AA28: 0
A29: Vitvi00g00580 | B29: 2.651008406 | C29: 2.795267243 | D29: 2.734298078 | E29: 2.677404481 | F29: 2.653229795 | G29: 2.55989416 | H29: 2.219601704 | I29: 3.37650039 | J29: 2.262333852 | K29: 2.592617647 | L29: 2.990376286 | M29: 3.905649219 | N29: 3.002974338 | O29: 2.03585729 | P29: 1.465722597 | Q29: 1.636684201 | R29: 2.936840603 | S29: 2.568294944 | T29: 3.634051091 | U29: 2.780945354 | V29: 2.374852024 | W29: 3.078479037 | X29: 2.810834454 | Y29: 3.455195922 | Z29: 0.4360231417 | AA29: 0.9466517293
A30: Vitvi00g00581 | B30: 0 | C30: 0 | D30: 0 | E30: 0 | F30: 0 | G30: 0 | H30: 0 | I30: 0 | J30: 0 | K30: 0 | L30: 0 | M30: 0 | N30: 0 | O30: 0 | P30: 0 | Q30: 0 | R30: 0 | S30: 2.838213055 | T30: 0 | U30: 0 | V30: 0 | W30: 0 | X30: 0 | Y30: 0 | Z30: 0 | AA30: 0
A31: Vitvi00g00582 | B31: 0.2706309252 | C31: 0 | D31: 0.3781353739 | E31: 0.1869295827 | F31: 0 | G31: 0.1498959794 | H31: 0 | I31: 0.1628994606 | J31: 0.5447646874 | K31: 0 | L31: 0.3362493926 | M31: 0 | N31: 0 | O31: 0 | P31: 0 | Q31: 0 | R31: 0 | S31: 0 | T31: 0 | U31: 0 | V31: 0.2918419502 | W31: 0 | X31: 0.2319267663 | Y31: 0 | Z31: -0.1041723022 | AA31: 0.07730892209
A32: Vitvi00g00610 | B32: 1.576849027 | C32: 1.601709968 | D32: 0.8637022021 | E32: 0.9789303672 | F32: 1.528517068 | G32: 1.11488355 | H32: 0.9010423859 | I32: 1.023250165 | J32: 0.894843702 | K32: 1.08531038 | L32: 1.543148076 | M32: 1.304484273 | N32: 1.856622217 | O32: 1.05846482 | P32: 0.8871608617 | Q32: 0.8781608275 | R32: 1.024368721 | S32: 0 | T32: 1.6932446 | U32: 1.118308376 | V32: 0.9793205103 | W32: 1.551864561 | X32: 0.8071020286 | Y32: 0 | Z32: -0.03643948934 | AA32: -0.4810937698
A33: Vitvi00g00613 | B33: 0 | C33: 0 | D33: 1.189054683 | E33: 0.6202510132 | F33: 0 | G33: 0 | H33: 0.9417234705 | I33: 1.361378578 | J33: 0.9318527361 | K33: 1.528051782 | L33: 1.670629253 | M33: 1.822870179 | N33: 0 | O33: 0 | P33: 0 | Q33: 0 | R33: 0.6978557289 | S33: 0 | T33: 0 | U33: 0 | V33: 0.8714832798 | W33: 0.4543473482 | X33: 0.7475065237 | Y33: 0 | Z33: 1.277498844 | AA33: 0.4006179573
A34: Vitvi00g00614 | B34: 1.906857556 | C34: 1.04525762 | D34: 1.205272919 | E34: 0.9333388593 | F34: 1.244739348 | G34: 2.369855558 | H34: 1.706623098 | I34: 1.744131021 | J34: 1.858427415 | K34: 1.519807815 | L34: 2.206351209 | M34: 1.03738572 | N34: 2.646719768 | O34: 1.59575022 | P34: 1.67512839 | Q34: 1.593022419 | R34: 1.257717929 | S34: 2.282281309 | T34: 1.018247437 | U34: 1.569961886 | V34: 1.021539097 | W34: 1.622459277 | X34: 1.176761789 | Y34: 2.036658566 | Z34: 0.2020522161 | AA34: -0.3605729154
A35: Vitvi00g00615 | B35: 1.246751839 | C35: 0.6959546622 | D35: 1.550469607 | E35: 1.01543983 | F35: 1.211590661 | G35: 1.862255573 | H35: 1.276924187 | I35: 1.446876515 | J35: 1.406076344 | K35: 1.559832354 | L35: 1.682920881 | M35: 1.011546986 | N35: 2.161124274 | O35: 1.218279672 | P35: 0.9988207655 | Q35: 1.196548322 | R35: 1.075982702 | S35: 1.554501132 | T35: 1.151844187 | U35: 1.172763477 | V35: 0.924146642 | W35: 1.060204122 | X35: 1.146527714 | Y35: 1.332636557 | Z35: 0.2537080377 | AA35: -0.2796187728
A36: Vitvi00g00616 | B36: 2.146550576 | C36: 2.562543652 | D36: 2.493155911 | E36: 2.447961418 | F36: 2.646073717 | G36: 2.350820027 | H36: 2.074710089 | I36: 2.743044996 | J36: 2.124561937 | K36: 2.250778504 | L36: 2.511278304 | M36: 2.502088832 | N36: 2.241563815 | O36: 2.065579347 | P36: 2.147820444 | Q36: 1.89054082 | R36: 1.952130558 | S36: 1.857936384 | T36: 1.968713568 | U36: 2.152180273 | V36: 2.557586047 | W36: 2.05634758 | X36: 2.200551152 | Y36: 1.703747444 | Z36: 0.02063183387 | AA36: -0.1647724767
A37: Vitvi00g00638 | B37: 1.022885507 | C37: 2.077223093 | D37: 1.573455264 | E37: 1.435358238 | F37: 0 | G37: 2.500005062 | H37: 2.062091338 | I37: 1.139229139 | J37: 1.626195632 | K37: 0 | L37: 0 | M37: 0 | N37: 1.292027 | O37: 0 | P37: 2.205074636 | Q37: 0 | R37: 0 | S37: 1.760448442 | T37: 1.691564086 | U37: 0 | V37: 1.868283175 | W37: 1.137227562 | X37: 1.608261042 | Y37: 1.860278004 | Z37: -1.557854622 | AA37: 0.3695549905
A38: Vitvi00g00639 | B38: 0.27377669 | C38: 0 | D38: 0 | E38: 0.6294739662 | F38: 0 | G38: 0 | H38: 0.1491014318 | I38: 0.3113931989 | J38: 0.1499706959 | K38: 0 | L38: 0.7434034824 | M38: 0.1677245502 | N38: 0 | O38: 0 | P38: 0 | Q38: 0 | R38: 0 | S38: 0 | T38: 0 | U38: 0 | V38: 0 | W38: 0 | X38: 0.2227901717 | Y38: 0 | Z38: 0.2124504475 | AA38: 0.07426339056
A39: Vitvi00g00640 | B39: 0 | C39: 0 | D39: 0 | E39: 0 | F39: 0 | G39: 0 | H39: 0 | I39: 0 | J39: 0 | K39: 0 | L39: 0 | M39: 0 | N39: 0 | O39: 0 | P39: 0 | Q39: 0 | R39: 0 | S39: 0 | T39: 0 | U39: 0 | V39: 0 | W39: 0 | X39: 0 | Y39: 0 | Z39: 0 | AA39: 0
A40: Vitvi00g00663 | B40: 1.28452221 | C40: 1.667303079 | D40: 1.030872025 | E40: 1.27491659 | F40: 1.893878486 | G40: 1.669017355 | H40: 1.499347847 | I40: 1.598723507 | J40: 1.210288777 | K40: 1.517469952 | L40: 1.726303718 | M40: 1.779641936 | N40: 0.7176238605 | O40: 1.370802275 | P40: 0.6973279285 | Q40: 1.775296111 | R40: 0.7487938592 | S40: 1.17913293 | T40: 0.5277162608 | U40: 1.013301041 | V40: 1.288541682 | W40: 1.18670584 | X40: 1.408913312 | Y40: 0.7651338712 | Z40: 0.3469060976 | AA40: 0.19166632
A41: Vitvi00g00664 | B41: 0 | C41: 2.024701914 | D41: 0 | E41: 2.287932317 | F41: 2.610919311 | G41: 1.613441651 | H41: 1.792068366 | I41: 2.503660988 | J41: 0 | K41: 0 | L41: 1.518771054 | M41: 1.002778297 | N41: 1.674226186 | O41: 1.354197117 | P41: 1.52689835 | Q41: 3.002489182 | R41: 2.016851031 | S41: 0 | T41: 1.408210767 | U41: 2.133165142 | V41: 1.642359962 | W41: 0 | X41: 1.398953128 | Y41: 0 | Z41: 0.1656158123 | AA41: -1.052122841
A42: Vitvi00g00665 | B42: 0.7490121179 | C42: 0.7556179025 | D42: 1.650400452 | E42: 0.9689658601 | F42: 0.9953342258 | G42: 1.576145328 | H42: 1.257964396 | I42: 0.6280888513 | J42: 0.5431502154 | K42: 0 | L42: 1.077480447 | M42: 1.036720787 | N42: 1.397986392 | O42: 1.522771572 | P42: 0.9142036985 | Q42: 1.629369233 | R42: 0.7838886793 | S42: 0.9264965461 | T42: 1.501822336 | U42: 1.383519825 | V42: 0.9967775213 | W42: 2.128516763 | X42: 1.764341861 | Y42: 2.312338545 | Z42: -0.3469430792 | AA42: 0.7900785021
A43: Vitvi00g00666 | B43: 3.377998023 | C43: 2.746507094 | D43: 2.305965547 | E43: 2.632146931 | F43: 1.715772542 | G43: 3.95653419 | H43: 3.280334658 | I43: 4.097660899 | J43: 0 | K43: 2.362730581 | L43: 1.540560043 | M43: 2.888326544 | N43: 3.66182917 | O43: 1.785123581 | P43: 2.787683678 | Q43: 0 | R43: 1.840606046 | S43: 1.969641602 | T43: 2.617423052 | U43: 1.956856452 | V43: 2.095954666 | W43: 1.378171507 | X43: 0 | Y43: 2.157425758 | Z43: -0.546284499 | AA43: -1.566346388
A44: Vitvi00g00668 | B44: 0.8327700645 | C44: 0.5755814391 | D44: 0.7002864889 | E44: 0.8400351536 | F44: 0.6059775371 | G44: 0.7433070792 | H44: 1.004855375 | I44: 1.28553707 | J44: 1.316543805 | K44: 1.440206827 | L44: 0.7626404037 | M44: 0.905245121 | N44: 0.8230898802 | O44: 0.4188124279 | P44: 1.038789634 | Q44: 0 | R44: 0.3955387322 | S44: 0.9940908085 | T44: 0.3180319931 | U44: 0.7944939339 | V44: 1.181346755 | W44: 0.7897584423 | X44: 0.880121673 | Y44: 0.2918652918 | Z44: 0.333151453 | AA44: -0.1063155117
A45: Vitvi00g00670 | B45: 0.925292414 | C45: 1.13587631 | D45: 0.8598647761 | E45: 0.8788260142 | F45: 1.27511599 | G45: 0.9829661029 | H45: 0.9564330335 | I45: 1.399131692 | J45: 0.227890379 | K45: 0.9430905229 | L45: 0.7174907975 | M45: 0.7539100125 | N45: 1.003773448 | O45: 0.8129448447 | P45: 0.8017659441 | Q45: 0 | R45: 1.059292248 | S45: 1.019405533 | T45: 0.5238875332 | U45: 1.137901356 | V45: 0.8658745324 | W45: 1.172415983 | X45: 1.242738235 | Y45: 0.9483311277 | Z45: -0.1688473892 | AA45: 0.2483337028
A46: Vitvi00g00671 | B46: 2.355723773 | C46: 2.466170838 | D46: 2.512028554 | E46: 2.552681725 | F46: 2.920053438 | G46: 3.083558713 | H46: 2.92535314 | I46: 3.344051097 | J46: 2.976749725 | K46: 3.016033025 | L46: 3.145920775 | M46: 1.779122764 | N46: 3.238396644 | O46: 2.544652587 | P46: 2.537389743 | Q46: 2.390611293 | R46: 2.040543729 | S46: 2.720255655 | T46: 2.418845811 | U46: 2.66112458 | V46: 1.589573981 | W46: 2.679812893 | X46: 2.059833499 | Y46: 0.880985756 | Z46: 0.2023844659 | AA46: -0.8999356085
A47: Vitvi00g00672 | B47: 2.893737802 | C47: 3.218856715 | D47: 3.662850316 | E47: 3.908012713 | F47: 3.243399629 | G47: 4.097971584 | H47: 3.847631563 | I47: 4.040623546 | J47: 3.811855543 | K47: 4.056068818 | L47: 3.798242055 | M47: 3.804264528 | N47: 4.651437684 | O47: 3.441309131 | P47: 3.712551029 | Q47: 2.889362474 | R47: 3.128321759 | S47: 3.624019688 | T47: 3.196919821 | U47: 3.393376118 | V47: 3.544644291 | W47: 3.299722616 | X47: 3.61099332 | Y47: 2.812772352 | Z47: 0.6277101895 | AA47: -0.6939365183
A48: Vitvi00g00673 | B48: 0 | C48: 0 | D48: 0 | E48: 0 | F48: 0 | G48: 0 | H48: 0 | I48: 0 | J48: 0 | K48: 0 | L48: 0 | M48: 0 | N48: 0 | O48: 0 | P48: 0 | Q48: 0 | R48: 0 | S48: 0 | T48: 0 | U48: 0 | V48: 0 | W48: 0 | X48: 0 | Y48: 0 | Z48: 0 | AA48: 0
A49: Vitvi00g00674 | B49: 0 | C49: 0 | D49: 0 | E49: 0 | F49: 0 | G49: 0 | H49: 0 | I49: 0 | J49: 0 | K49: 0 | L49: 0 | M49: 0 | N49: 0 | O49: 0 | P49: 0 | Q49: 0 | R49: 0 | S49: 0 | T49: 0 | U49: 0 | V49: 0 | W49: 0 | X49: 0 | Y49: 0 | Z49: 0 | AA49: 0
A50: Vitvi00g00675 | B50: 3.521451082 | C50: 3.524898669 | D50: 3.410080751 | E50: 3.13871884 | F50: 3.253620137 | G50: 3.315459849 | H50: 3.283300166 | I50: 3.364693831 | J50: 3.472106707 | K50: 3.522725307 | L50: 3.590707711 | M50: 3.789011113 | N50: 2.719675026 | O50: 3.398105229 | P50: 2.928779888 | Q50: 2.849662437 | R50: 3.123695426 | S50: 3.000400849 | T50: 3.337490142 | U50: 3.144880718 | V50: 3.555246817 | W50: 4.099627236 | X50: 3.911073404 | Y50: 3.787706818 | Z50: 0.1486712093 | AA50: 0.9172824384
A51: Vitvi00g00676 | B51: 3.033659367 | C51: 3.073738647 | D51: 2.075337327 | E51: 2.967745253 | F51: 3.059976641 | G51: 1.950369806 | H51: 2.159857115 | I51: 2.529014486 | J51: 1.772168316 | K51: 1.715228205 | L51: 2.209507679 | M51: 2.555163167 | N51: 2.963831137 | O51: 3.33854321 | P51: 3.052710386 | Q51: 2.922198294 | R51: 3.09738001 | S51: 3.218234396 | T51: 3.143259587 | U51: 3.215672149 | V51: 3.20939786 | W51: 3.244792413 | X51: 2.973517757 | Y51: 3.192880404 | Z51: -0.5676120965 | AA51: 0.0187019466
A52: Vitvi00g00710 | B52: 2.253417131 | C52: 1.606387859 | D52: 1.897388815 | E52: 2.090453623 | F52: 1.888617444 | G52: 1.968950687 | H52: 1.12490674 | I52: 1.958178786 | J52: 1.875568437 | K52: 2.19484177 | L52: 1.998795895 | M52: 1.290931491 | N52: 2.251484143 | O52: 2.584073854 | P52: 3.148392929 | Q52: 3.023040481 | R52: 3.148260916 | S52: 3.435962998 | T52: 3.013253315 | U52: 3.635670541 | V52: 3.09625405 | W52: 1.452718538 | X52: 2.551740956 | Y52: 1.395716259 | Z52: -0.09087488291 | AA52: -0.8612583912
A53: Vitvi00g00711 | B53: 1.332711813 | C53: 0.4804364895 | D53: 0.9648674126 | E53: 1.282586979 | F53: 0.9523150157 | G53: 0.8375616113 | H53: 0.9443109899 | I53: 1.117049052 | J53: 1.022321696 | K53: 1.189643107 | L53: 1.098700006 | M53: 1.048992301 | N53: 1.240371151 | O53: 1.847582596 | P53: 1.544471798 | Q53: 1.842838975 | R53: 1.834332824 | S53: 1.423087885 | T53: 1.986754363 | U53: 2.031359808 | V53: 1.915326161 | W53: 0.8700077923 | X53: 1.26910168 | Y53: 0.8618092343 | Z53: 0.1864398994 | AA53: -0.5438356126
A54: Vitvi00g00715 | B54: 1.179114425 | C54: 1.2086847 | D54: 1.31872087 | E54: 0.759988082 | F54: 1.132723539 | G54: 1.380920555 | H54: 1.10461754 | I54: 2.099097789 | J54: 0.3521023346 | K54: 0.9301001967 | L54: 0.4930008425 | M54: 1.298052389 | N54: 0.3580847396 | O54: 0.8018022635 | P54: 0 | Q54: 0 | R54: 1.062739125 | S54: 1.235490441 | T54: 1.380514882 | U54: 1.21868634 | V54: 1.608935286 | W54: 1.481544021 | X54: 1.723054382 | Y54: 0 | Z54: -0.3284555222 | AA54: 0.6815704666
A55: Vitvi00g00716 | B55: 0.2840237155 | C55: 1.577781552 | D55: 0.1272819185 | E55: 0.2609617656 | F55: 0 | G55: 0.3467538453 | H55: 0.1460516854 | I55: 0.3437011163 | J55: 0.1532611503 | K55: 0.3221629856 | L55: 0.4288062706 | M55: 0.3513529994 | N55: 1.372335373 | O55: 0.8128876587 | P55: 0.9298417403 | Q55: 0 | R55: 0.2530896923 | S55: 0 | T55: 0.2428806024 | U55: 0.303146164 | V55: 0.3871092209 | W55: 0 | X55: 0.327878915 | Y55: 2.581678013 | Z55: -0.2955883101 | AA55: -0.0685026148
A56: Vitvi00g00717 | B56: 0.7788666896 | C56: 1.159940244 | D56: 0.9501392347 | E56: 0.2527004269 | F56: 0.186132838 | G56: 0.5950329233 | H56: 0.693708628 | I56: 0.617095187 | J56: 0.4352530374 | K56: 0.8035256571 | L56: 0.4680843939 | M56: 0.9054257177 | N56: 0.5894030456 | O56: 0.5374589556 | P56: 0.6784123824 | Q56: 0.3542762741 | R56: 1.189109348 | S56: 0 | T56: 1.06042367 | U56: 0.6562805349 | V56: 0.3211125126 | W56: 1.035945385 | X56: 0.5269603015 | Y56: 0 | Z56: -0.2373034665 | AA56: -0.08078956581
A57: Vitvi00g00718 | B57: 1.176012745 | C57: 1.310071414 | D57: 1.333666922 | E57: 0.9737843299 | F57: 1.464320134 | G57: 1.450758864 | H57: 1.244789592 | I57: 1.63362009 | J57: 1.346273859 | K57: 1.350819863 | L57: 1.676803676 | M57: 1.426570481 | N57: 1.366460645 | O57: 1.663688993 | P57: 1.677317397 | Q57: 1.474425733 | R57: 1.507330423 | S57: 1.861111447 | T57: 1.67958479 | U57: 1.880896879 | V57: 1.287285061 | W57: 1.7947797 | X57: 1.622654992 | Y57: 2.147963549 | Z57: 0.2114809794 | AA57: 0.2859770682
A58: Vitvi00g00742 | B58: 0.5627847038 | C58: 0.7622729015 | D58: 0 | E58: 0 | F58: 0.7944273083 | G58: 0.1336682815 | H58: 0.5234629848 | I58: 0 | J58: 0 | K58: 0.3798686514 | L58: 0.9041225863 | M58: 0.7784736201 | N58: 0.6853901047 | O58: 0.967614784 | P58: 0.6738219788 | Q58: 0 | R58: 0.5651938527 | S58: 0 | T58: 0 | U58: 0.04484109778 | V58: 1.03001783 | W58: 0.1904873514 | X58: 0.8245857737 | Y58: 0 | Z58: 0.2458024175 | AA58: -0.4372512474
A59: Vitvi00g00755 | B59: 2.738333574 | C59: 3.02084954 | D59: 1.716931362 | E59: 0 | F59: 2.570769159 | G59: 1.936366114 | H59: 2.374889477 | I59: 3.123706524 | J59: 3.143314126 | K59: 2.800804704 | L59: 2.400621825 | M59: 3.716718323 | N59: 0.4181584257 | O59: 1.599658624 | P59: 0.8016049086 | Q59: 1.882988545 | R59: 2.163461572 | S59: 0 | T59: 1.602389783 | U59: 1.833587049 | V59: 0 | W59: 2.644432051 | X59: 1.109260611 | Y59: 0 | Z59: 0.4806767922 | AA59: 0.3114235681
A60: Vitvi00g00756 | B60: 0.657077511 | C60: 0.5826127691 | D60: 0.9249266328 | E60: 0.828739439 | F60: 0.5439372053 | G60: 0.9726986985 | H60: 0.4099504838 | I60: 0.5542076091 | J60: 0.4736355604 | K60: 1.217506765 | L60: 0.8495174999 | M60: 1.054518487 | N60: 0.5850922264 | O60: 1.02030973 | P60: 0.4828127066 | Q60: 0.3332667947 | R60: 0.2333192109 | S60: 0.4907779596 | T60: 0.2525687335 | U60: 0.7381583377 | V60: 0 | W60: 1.122999647 | X60: 0.2495329025 | Y60: 0.7375579214 | Z60: 0.3189752797 | AA60: 0.007291936098
A61: Vitvi00g00757 | B61: 0.2879795011 | C61: 0.73945232 | D61: 0 | E61: 0.4202270083 | F61: 0.4550805596 | G61: 0.2465810709 | H61: 0.2613907232 | I61: 0.288618817 | J61: 0.2176960889 | K61: 0.5230502043 | L61: 0.2118603224 | M61: 0.4572600911 | N61: 0.2463232224 | O61: 0 | P61: 0.4068549202 | Q61: 0.3658811216 | R61: 0 | S61: 0 | T61: 0.5124409412 | U61: 0 | V61: 0 | W61: 0.5197266094 | X61: 0.6722958 | Y61: 0.7983005168 | Z61: 0.05491293218 | AA61: 0.4457149279
A62: Vitvi00g00777 | B62: 0.3788922617 | C62: 0 | D62: 0 | E62: 0 | F62: 0 | G62: 0.5242613365 | H62: 0 | I62: 0.66746721 | J62: 0.3158794243 | K62: 0.9775619942 | L62: 0.6110331904 | M62: 0.6095574232 | N62: 0.4071131266 | O62: 0 | P62: 0 | Q62: 0 | R62: 0.6312869376 | S62: 0 | T62: 0 | U62: 0.7397967089 | V62: 0.8020230988 | W62: 0.4591527552 | X62: 0.5897058901 | Y62: 0 | Z62: 0.6064201154 | AA62: 0.2139151729
A63: Vitvi00g00786 | B63: 0.3393907929 | C63: 10.3472243 | D63: 0 | E63: 0.3837143137 | F63: 0.2437441915 | G63: 0.1180627491 | H63: 0.1439356318 | I63: 0 | J63: 0.1985007249 | K63: 0 | L63: 0 | M63: 0 | N63: 0.2604193747 | O63: 0.2309132652 | P63: 0.1472503785 | Q63: 0 | R63: 0.2374033395 | S63: 0.4275714265 | T63: 0.2288834463 | U63: 0 | V63: 0 | W63: 4.18E-06 | X63: 0.1581434962 | Y63: 8.365257408 | Z63: -3.56220503 | AA63: 2.628274022
A64: Vitvi00g00787 | B64: 0.7079738987 | C64: 1.231425659 | D64: 1.407531407 | E64: 0 | F64: 0 | G64: 0.7989479476 | H64: 0.7615662005 | I64: 1.310559499 | J64: 0 | K64: 1.684120469 | L64: 0 | M64: 0 | N64: 0 | O64: 1.091334318 | P64: 0 | Q64: 1.035413829 | R64: 0.9800192149 | S64: 0 | T64: 0.9305118884 | U64: 0.6126541849 | V64: 0 | W64: 0 | X64: 0 | Y64: 0 | Z64: -0.5542701653 | AA64: -0.3637781061
A65: Vitvi00g00788 | B65: 0 | C65: 0 | D65: 0 | E65: 0 | F65: 0.4792197823 | G65: 0 | H65: 0 | I65: 0.2474629845 | J65: 0.4952363195 | K65: 0 | L65: 0 | M65: 0.5959417862 | N65: 0 | O65: 0 | P65: 0 | Q65: 0 | R65: 0 | S65: 0 | T65: 0 | U65: 0 | V65: 0 | W65: 0.2366805923 | X65: 0.3354046636 | Y65: 0.3589713299 | Z65: 0.1986472621 | AA65: 0.3103521953
A66: Vitvi00g00789 | B66: 4.553968557 | C66: 3.927075619 | D66: 4.605071719 | E66: 4.627263864 | F66: 4.378121908 | G66: 4.664472926 | H66: 4.608209768 | I66: 4.985136398 | J66: 4.715806674 | K66: 5.93724824 | L66: 4.886390873 | M66: 5.206782122 | N66: 3.671800473 | O66: 4.183729308 | P66: 3.90729249 | Q66: 3.780452391 | R66: 3.694458338 | S66: 3.790583902 | T66: 4.319703133 | U66: 4.077664156 | V66: 4.645417558 | W66: 4.270301367 | X66: 3.988613505 | Y66: 4.173838028 | Z66: 0.9814351133 | AA66: 0.2233102098
A67: Vitvi00g00790 | B67: 4.333550397 | C67: 4.341089386 | D67: 4.166337454 | E67: 4.354452831 | F67: 4.345177048 | G67: 4.335051502 | H67: 4.48757052 | I67: 4.470947634 | J67: 4.23461321 | K67: 4.427679261 | L67: 4.515621847 | M67: 4.524805405 | N67: 4.158635296 | O67: 4.384790417 | P67: 4.352274011 | Q67: 4.013559791 | R67: 4.424447292 | S67: 4.526795491 | T67: 4.745358072 | U67: 4.650453634 | V67: 4.590022737 | W67: 4.876667456 | X67: 4.577304188 | Y67: 4.762751039 | Z67: 0.2090430923 | AA67: 0.4403409863
A68: Vitvi00g00791 | B68: 0 | C68: 0.2009535977 | D68: 0 | E68: 0 | F68: 0 | G68: 0 | H68: 0.2088918332 | I68: 0.2308504556 | J68: 0 | K68: 0 | L68: 0 | M68: 0.2195136026 | N68: 0 | O68: 0.2819086364 | P68: 0.3260040437 | Q68: 0 | R68: 0 | S68: 0 | T68: 0 | U68: 0.1583355476 | V68: 0 | W68: 0.1740695458 | X68: 0 | Y68: 0 | Z68: =AVERAGE(K68:M68)-AVERAGE(B68:D68) -> 0.006186668311 | AA68: =AVERAGE(W68:Y68)-AVERAGE(N68:P68) -> -0.1446143781
A69: Vitvi00g00792 | B69: 4.433860114 | C69: 4.561544845 | D69: 4.463831881 | E69: 4.494137263 | F69: 4.869258756 | G69: 4.795540535 | H69: 4.85523509 | I69: 4.770082708 | J69: 4.572469083 | K69: 4.436042117 | L69: 4.667922245 | M69: 4.651934433 | N69: 4.407752296 | O69: 4.517399329 | P69: 4.45187281 | Q69: 4.454893407 | R69: 4.350172877 | S69: 4.569719455 | T69: 4.70567728 | U69: 4.729066911 | V69: 4.75144715 | W69: 4.567681734 | X69: 4.7965511 | Y69: 4.501210818 | Z69: 0.09888731884 | AA69: 0.1628064057
A70: Vitvi00g00794 | B70: 1.155231524 | C70: 0.3642033267 | D70: 1.118232464 | E70: 0.7465615453 | F70: 0.8942305566 | G70: 1.095382533 | H70: 1.268796862 | I70: 0.7212214383 | J70: 1.302621018 | K70: 1.289957798 | L70: 0.8329930532 | M70: 0.8042329115 | N70: 0.7011874599 | O70: 1.207372125 | P70: 0.9059304174 | Q70: 0.5533658006 | R70: 0.661945737 | S70: 0.7604296033 | T70: 0.6721842598 | U70: 0.9519466508 | V70: 0.6624996683 | W70: 1.128739505 | X70: 1.265120687 | Y70: 1.453208107 | Z70: 0.09650548234 | AA70: 0.3441927658
A71: Vitvi00g00811 | B71: 4.268950525 | C71: 4.510377575 | D71: 3.912459605 | E71: 3.673248462 | F71: 3.976662415 | G71: 4.073403114 | H71: 3.848884091 | I71: 3.789621887 | J71: 3.996182356 | K71: 3.740723323 | L71: 4.010362252 | M71: 4.409420792 | N71: 3.14311956 | O71: 3.890385269 | P71: 3.033571627 | Q71: 3.424317716 | R71: 3.37920294 | S71: 3.581377237 | T71: 3.574167235 | U71: 3.201723794 | V71: 3.119766854 | W71: 3.451083279 | X71: 3.587665042 | Y71: 3.468474234 | Z71: -0.1770937793 | AA71: 0.1467153664
A72: Vitvi00g00812 | B72: 1.702549816 | C72: 1.978612451 | D72: 2.287703744 | E72: 2.08166451 | F72: 2.326095417 | G72: 2.270072613 | H72: 2.312810996 | I72: 2.168432733 | J72: 2.163094512 | K72: 1.932362772 | L72: 2.500535944 | M72: 2.430281224 | N72: 1.467037194 | O72: 1.923062761 | P72: 1.707731973 | Q72: 1.382501799 | R72: 1.858079458 | S72: 1.994307964 | T72: 1.576893277 | U72: 1.720587956 | V72: 1.625885199 | W72: 1.999221063 | X72: 1.949985473 | Y72: 1.909545236 | Z72: 0.2981046431 | AA72: 0.2536399484
A73: Vitvi00g00813 | B73: 4.442879679 | C73: 4.629267997 | D73: 4.425727348 | E73: 4.991200841 | F73: 4.481835901 | G73: 4.184505027 | H73: 4.370870801 | I73: 4.704246418 | J73: 5.169862915 | K73: 5.246538719 | L73: 5.098680853 | M73: 5.209194754 | N73: 4.016215833 | O73: 4.984147903 | P73: 4.641654235 | Q73: 5.44411568 | R73: 5.019680331 | S73: 4.392404065 | T73: 5.441152329 | U73: 5.349579793 | V73: 4.550028206 | W73: 5.700333745 | X73: 5.683302316 | Y73: 5.625566055 | Z73: 0.6855131003 | AA73: 1.122394715
A74: Vitvi00g00814 | B74: 4.057919173 | C74: 4.025858587 | D74: 3.89793174 | E74: 4.267124664 | F74: 4.297500951 | G74: 4.256510458 | H74: 4.473336577 | I74: 4.346560056 | J74: 4.212606275 | K74: 4.462037426 | L74: 4.503642055 | M74: 4.414413051 | N74: 4.175713515 | O74: 4.320107482 | P74: 4.367069722 | Q74: 4.309788137 | R74: 4.294049446 | S74: 4.470907082 | T74: 4.521925894 | U74: 4.546682801 | V74: 4.4632753 | W74: 4.962524288 | X74: 4.822986987 | Y74: 4.885869891 | Z74: 0.4661276771 | AA74: 0.6028301486
A75: Vitvi00g00816 | B75: 3.023957437 | C75: 3.122459544 | D75: 2.702978357 | E75: 3.076596296 | F75: 3.020702415 | G75: 2.275775847 | H75: 2.532151306 | I75: 2.710553331 | J75: 2.840936528 | K75: 2.587810805 | L75: 2.444945019 | M75: 2.692104411 | N75: 2.821883514 | O75: 3.579976818 | P75: 2.945691034 | Q75: 3.10371151 | R75: 3.478778405 | S75: 2.63713923 | T75: 3.522509405 | U75: 3.190018132 | V75: 2.814189263 | W75: 3.896006655 | X75: 3.784165776 | Y75: 3.939986525 | Z75: -0.3748450341 | AA75: 0.7575358633
A76: Vitvi00g00817 | B76: 1.267420985 | C76: 0 | D76: 0 | E76: 0 | F76: 0 | G76: 0 | H76: 0 | I76: 0 | J76: 0 | K76: 0 | L76: 0.6147812733 | M76: 0 | N76: 0 | O76: 0 | P76: 0 | Q76: 0 | R76: 0 | S76: 0 | T76: 0 | U76: 0 | V76: 1.638507058 | W76: 0 | X76: 1.397531187 | Y76: 0 | Z76: -0.2175465707 | AA76: 0.465843729
A77: Vitvi00g00822 | B77: 0.3775792991 | C77: 0.3763694884 | D77: 0.4260788749 | E77: 0.3506386565 | F77: 0.5036249335 | G77: 0.6121867549 | H77: 0.6393047726 | I77: 0.7910963149 | J77: 0.5970960265 | K77: 0.3841716725 | L77: 0.4709059988 | M77: 0.4240914619 | N77: 0.2672521735 | O77: 0.3728860559 | P77: 0.4361926464 | Q77: 0.232324175 | R77: 0.09477136968 | S77: 0.1048498734 | T77: 0.4039920955 | U77: 0.2300647576 | V77: 0.4554627643 | W77: 0.3279403142 | X77: 0.2471178875 | Y77: 0.435463983 | Z77: 0.03304715695 | AA77: -0.02193623037
A78: Vitvi00g00824 | B78: 7.515555926 | C78: 8.094974066 | D78: 8.644127347 | E78: 8.18981561 | F78: 8.344616557 | G78: 9.374321267 | H78: 8.510894951 | I78: 8.616914393 | J78: 8.490028624 | K78: 8.365701006 | L78: 8.02620759 | M78: 6.824301684 | N78: 10.59564327 | O78: 7.309027045 | P78: 6.727593926 | Q78: 6.757772291 | R78: 6.349585635 | S78: 6.984896805 | T78: 6.557695853 | U78: 7.353149544 | V78: 6.741014765 | W78: 6.46529997 | X78: 5.508108413 | Y78: 6.332333626 | Z78: -0.3461490195 | AA78: -2.108840743
A79: Vitvi00g00825 | B79: 4.369762234 | C79: 2.566510991 | D79: 3.893771846 | E79: 4.267717547 | F79: 4.744833589 | G79: 5.013960563 | H79: 3.461042561 | I79: 4.867197282 | J79: 5.134071658 | K79: 4.715167448 | L79: 4.623836054 | M79: 5.413686216 | N79: 5.040948212 | O79: 4.941328436 | P79: 5.490705891 | Q79: 4.071775755 | R79: 0 | S79: 4.774147876 | T79: 4.659836655 | U79: 4.087537701 | V79: 5.337728957 | W79: 5.628355324 | X79: 4.074412023 | Y79: 5.330555033 | Z79: 1.307548216 | AA79: -0.1465533861
A80: Vitvi00g00858 | B80: 0 | C80: 0.8517768729 | D80: 0.7655163183 | E80: 1.619937805 | F80: 0 | G80: 0 | H80: 0 | I80: 1.547640471 | J80: 0 | K80: 0 | L80: 0 | M80: 0 | N80: 0 | O80: 0 | P80: 1.99662557 | Q80: 0 | R80: 0 | S80: 0 | T80: 0 | U80: 0 | V80: 2.140033606 | W80: 0 | X80: 1.210237192 | Y80: 0 | Z80: -0.5390977304 | AA80: -0.2621294593
A81: Vitvi00g00859 | B81: 0.4176490373 | C81: 1.345540264 | D81: 1.201684611 | E81: 0.5495635177 | F81: 1.123284309 | G81: 0.8276507873 | H81: 0.7307710877 | I81: 1.054982735 | J81: 0.4882192763 | K81: 0.645286011 | L81: 1.135961515 | M81: 0.8470487974 | N81: 0.2660401735 | O81: 0.7153381099 | P81: 0 | Q81: 0.8087564771 | R81: 0.7712377852 | S81: 0 | T81: 0 | U81: 0.7846386423 | V81: 0.7446853066 | W81: 0.9974395071 | X81: 0.1228777258 | Y81: 0.8207314058 | Z81: -0.1121925299 | AA81: 0.3198901185
A82: Vitvi00g00864 | B82: 0.7311812575 | C82: 1.36989595 | D82: 0 | E82: 0.6419484155 | F82: 0.1557922658 | G82: 1.958515781 | H82: 0.5011438738 | I82: 0.9023145401 | J82: 0.5315334615 | K82: 0.7726104962 | L82: 1.137306409 | M82: 0 | N82: 1.357435655 | O82: 0 | P82: 1.307670102 | Q82: 0 | R82: 1.132765881 | S82: 0.8514853813 | T82: 1.019560443 | U82: 0 | V82: 0 | W82: 0 | X82: 0 | Y82: 1.143341297 | Z82: -0.06372010099 | AA82: -0.5072548198
A83: Vitvi00g00869 | B83: 5.91917857 | C83: 5.425123593 | D83: 5.480426342 | E83: 5.258191498 | F83: 5.64636714 | G83: 5.488210665 | H83: 5.552535778 | I83: 5.91864873 | J83: 5.797612534 | K83: 6.130071881 | L83: 5.739570648 | M83: 5.48517558 | N83: 4.486836314 | O83: 4.966374641 | P83: 4.974968123 | Q83: 5.137023358 | R83: 5.086774293 | S83: 4.929831866 | T83: 5.397693358 | U83: 5.16554294 | V83: 4.916422732 | W83: 5.248921207 | X83: 5.216617494 | Y83: 5.177737486 | Z83: 0.1766965347 | AA83: 0.4050323698
A84: Vitvi00g00870 | B84: 2.881397194 | C84: 2.445923999 | D84: 2.826137281 | E84: 2.971448116 | F84: 2.739820192 | G84: 2.550886411 | H84: 2.748254287 | I84: 2.408260987 | J84: 2.90853683 | K84: 2.285290921 | L84: 2.395407793 | M84: 2.659990503 | N84: 2.602558883 | O84: 3.072992765 | P84: 2.446101133 | Q84: 2.388277856 | R84: 2.676770774 | S84: 2.210966199 | T84: 2.403411612 | U84: 1.817004544 | V84: 2.1576323 | W84: 2.163560485 | X84: 1.688727792 | Y84: 2.6453986 | Z84: -0.2709230853 | AA84: -0.5413219684
A85: Vitvi00g00879 | B85: 2.819407599 | C85: 2.550638747 | D85: 2.117591991 | E85: 3.111381293 | F85: 3.146080594 | G85: 1.218950238 | H85: 0 | I85: 2.66143267 | J85: 3.25729916 | K85: 1.971870847 | L85: 3.235606016 | M85: 0 | N85: 2.433187281 | O85: 1.636942859 | P85: 1.76578501 | Q85: 1.630037966 | R85: 1.642845729 | S85: 3.027109385 | T85: 1.519197515 | U85: 1.080067199 | V85: 3.317117424 | W85: 2.133124095 | X85: 0 | Y85: 1.857798805 | Z85: -0.7600538246 | AA85: -0.6149974166
A86: Vitvi00g00880 | B86: 1.598096653 | C86: 1.219739211 | D86: 1.690832343 | E86: 1.173959964 | F86: 1.707432589 | G86: 1.510101796 | H86: 1.484921813 | I86: 1.773889972 | J86: 1.380588687 | K86: 1.567279138 | L86: 1.839181287 | M86: 1.777938855 | N86: 1.08807447 | O86: 1.458780999 | P86: 1.509148162 | Q86: 0.980802034 | R86: 0.9812293317 | S86: 1.733362532 | T86: 1.576816826 | U86: 1.615858886 | V86: 1.123093016 | W86: 1.631199203 | X86: 1.546453799 | Y86: 1.420517499 | Z86: 0.2252436907 | AA86: 0.1807222898
A87: Vitvi00g00885 | B87: 0.2035817035 | C87: 0.2830939821 | D87: 0.3309271509 | E87: 0 | F87: 0.1515883887 | G87: 0 | H87: 0 | I87: 0 | J87: 0 | K87: 0.3505079454 | L87: 0.2337444757 | M87: 0.4464138297 | N87: 0 | O87: 0.3521569211 | P87: 0 | Q87: 1.258264028 | R87: 0.1849329413 | S87: 0.2191938252 | T87: 0.2739906407 | U87: 0.2959182981 | V87: 0 | W87: 0.2651019961 | X87: 0.1992450483 | Y87: 0.722880377 | Z87: 0.07102113809 | AA87: 0.2783568335
A88: Vitvi00g00889 | B88: 0.891944881 | C88: 0.5100817762 | D88: 0.4948211206 | E88: 0 | F88: 0.321360322 | G88: 0.6039985669 | H88: 0 | I88: 0.3457010686 | J88: 0.7164294602 | K88: 0.7432728829 | L88: 0.9188634494 | M88: 0 | N88: 0.328782 | O88: 0.4229902742 | P88: 0.4905034248 | Q88: 0.4614971082 | R88: 0.4532018872 | S88: 0.92292296 | T88: 0.696157733 | U88: 0.2462129202 | V88: 0.5473255638 | W88: 0.8859885235 | X88: 0 | Y88: 1.745879172 | Z88: -0.07823714849 | AA88: 0.4631973321
A89: Vitvi00g00893 | B89: 1.270436262 | C89: 1.020746823 | D89: 1.450145452 | E89: 2.318895055 | F89: 1.456726224 | G89: 1.379816527 | H89: 1.155224945 | I89: 1.570785352 | J89: 1.655051751 | K89: 2.019757294 | L89: 2.225134939 | M89: 1.217170813 | N89: 0.4948109819 | O89: 1.972565798 | P89: 1.702894746 | Q89: 0.6485765519 | R89: 1.424520517 | S89: 1.061778362 | T89: 1.483093892 | U89: 0.9823450687 | V89: 0.7843952287 | W89: 1.879039899 | X89: 1.484417835 | Y89: 2.152188005 | Z89: 0.5735781695 | AA89: 0.4484580711
A90: Vitvi00g00894 | B90: 2.821182757 | C90: 3.119958251 | D90: 2.800316083 | E90: 3.015244415 | F90: 2.849834654 | G90: 2.798776532 | H90: 3.182784141 | I90: 2.989918699 | J90: 2.714718861 | K90: 2.114730957 | L90: 2.584934388 | M90: 2.729558142 | N90: 3.256569453 | O90: 4.020043862 | P90: 3.177696167 | Q90: 3.337248226 | R90: 3.759700884 | S90: 3.448326122 | T90: 3.154731553 | U90: 3.220295659 | V90: 2.971558009 | W90: 3.131381594 | X90: 3.45433571 | Y90: 2.913114423 | Z90: -0.4374112012 | AA90: -0.318492585
A91: Vitvi00g00897 | B91: 3.724538147 | C91: 4.16216322 | D91: 3.603840071 | E91: 3.543757432 | F91: 4.541218126 | G91: 3.872023959 | H91: 3.949050218 | I91: 4.127174809 | J91: 3.94668107 | K91: 3.184271842 | L91: 4.307039581 | M91: 4.319764334 | N91: 2.990080543 | O91: 3.675487822 | P91: 2.645875509 | Q91: 2.547576286 | R91: 2.713065778 | S91: 2.472670643 | T91: 3.256503757 | U91: 2.805250364 | V91: 2.650679052 | W91: 2.643494724 | X91: 2.773199237 | Y91: 2.679451264 | Z91: 0.1068447728 | AA91: -0.4050995498
A92: Vitvi00g00898 | B92: 0 | C92: 0.4897200383 | D92: 0.6146617072 | E92: 0.6528757243 | F92: 0 | G92: 0.4668982387 | H92: 0.3121500383 | I92: 0 | J92: 0 | K92: 1.090018159 | L92: 0.4802344752 | M92: 1.465276386 | N92: 1.239866032 | O92: 0.7127002811 | P92: 0.8225381028 | Q92: 0 | R92: 1.182238492 | S92: 0.8361885876 | T92: 0.613507262 | U92: 0 | V92: 0 | W92: 0 | X92: 0 | Y92: 0 | Z92: 0.6437157583 | AA92: -0.9250348054
A93: Vitvi00g00908 | B93: 0.2173777115 | C93: 0 | D93: 0.31986678 | E93: 0.2434217863 | F93: 0.191623321 | G93: 0.6096308438 | H93: 0.5096162821 | I93: 0.2791821286 | J93: 0 | K93: 0.1862702821 | L93: 0.1745831946 | M93: 0.5093742893 | N93: 0.7145473708 | O93: 0 | P93: 0 | Q93: 0.3252198598 | R93: 0 | S93: 0.6103733708 | T93: 0.4423339895 | U93: 0.4340025854 | V93: 0.3845593218 | W93: 0.7945910863 | X93: 0.3131690043 | Y93: 0.8423923216 | Z93: 0.1109944248 | AA93: 0.4118683471
A94: Vitvi00g00910 | B94: 1.167799176 | C94: 0.82333973 | D94: 1.242104542 | E94: 1.222466069 | F94: 0.794852271 | G94: 1.386697116 | H94: 1.538807002 | I94: 1.735977862 | J94: 1.348985091 | K94: 2.166831671 | L94: 1.411054499 | M94: 1.829766283 | N94: 0.7203022836 | O94: 1.030641855 | P94: 0.706962826 | Q94: 0.9823637671 | R94: 0.6396652888 | S94: 0.7009041211 | T94: 0.655127806 | U94: 0.9374051408 | V94: 0.7806069445 | W94: 0.769844466 | X94: 1.172271562 | Y94: 1.096093824 | Z94: 0.7248030017 | AA94: 0.1934342957
A95: Vitvi00g00911 | B95: 1.74884634 | C95: 1.36123809 | D95: 2.054817489 | E95: 1.277686701 | F95: 1.039645696 | G95: 1.183248543 | H95: 1.674289964 | I95: 1.629972728 | J95: 1.372216367 | K95: 2.097836557 | L95: 2.388146664 | M95: 1.431998645 | N95: 0.6547446709 | O95: 1.205139748 | P95: 0.9384752097 | Q95: 0.7189682364 | R95: 0.9365755505 | S95: 1.302415066 | T95: 1.588029704 | U95: 1.070753123 | V95: 0.9798198416 | W95: 1.588290749 | X95: 1.241484877 | Y95: 1.262954625 | Z95: 0.2510266491 | AA95: 0.4314568744
A96: Vitvi00g00918 | B96: 1.416613248 | C96: 1.010189627 | D96: 1.376926827 | E96: 1.072269402 | F96: 1.502588586 | G96: 1.045623461 | H96: 1.215618071 | I96: 1.206992237 | J96: 1.301767369 | K96: 1.224298388 | L96: 1.256146359 | M96: 1.041064544 | N96: 1.26137246 | O96: 1.306538077 | P96: 0.8269244266 | Q96: 1.378880364 | R96: 1.264632244 | S96: 1.4326275 | T96: 0.7717443912 | U96: 0.9373507685 | V96: 0.6603569435 | W96: 1.677610577 | X96: 0 | Y96: 1.349872254 | Z96: -0.09407347077 | AA96: -0.1224507111
A97: Vitvi00g00919 | B97: 3.482011685 | C97: 3.199360817 | D97: 3.138928844 | E97: 2.756173286 | F97: 3.023654131 | G97: 3.149829618 | H97: 3.640900082 | I97: 3.672714639 | J97: 3.276417199 | K97: 3.620537414 | L97: 3.611937179 | M97: 4.18388431 | N97: 2.620498153 | O97: 2.974487611 | P97: 2.785654139 | Q97: 2.86677782 | R97: 2.049688606 | S97: 2.636245277 | T97: 3.233499802 | U97: 2.554212232 | V97: 3.399402124 | W97: 3.673520449 | X97: 3.616422794 | Y97: 3.569716331 | Z97: 0.5320191859 | AA97: 0.8263398905
A98: Vitvi00g00920 | B98: 1.444925182 | C98: 1.784728619 | D98: 1.657607977 | E98: 2.053671637 | F98: 3.550950656 | G98: 3.167028264 | H98: 0.8300207356 | I98: 2.568391738 | J98: 2.020151776 | K98: 2.08197828 | L98: 2.695567033 | M98: 1.968010328 | N98: 1.910531645 | O98: 0 | P98: 0.7598063241 | Q98: 2.972402151 | R98: 1.751166209 | S98: 0 | T98: 0.6962656567 | U98: 0 | V98: 1.298988511 | W98: 1.785868563 | X98: 1.96274261 | Y98: 0 | Z98: 0.6194312872 | AA98: 0.3594244014
A99: Vitvi00g00921 | B99: 2.156917068 | C99: 1.590586009 | D99: 1.849069155 | E99: 1.833611004 | F99: 1.812380654 | G99: 1.872927356 | H99: 2.074903608 | I99: 2.057791809 | J99: 2.13058825 | K99: 2.441614871 | L99: 2.14487403 | M99: 2.095360036 | N99: 1.259373189 | O99: 1.673942789 | P99: 1.311864952 | Q99: 1.162185784 | R99: 1.489180942 | S99: 1.651416391 | T99: 1.63156894 | U99: 1.467979397 | V99: 1.461121261 | W99: 1.743762694 | X99: 1.551291243 | Y99: 1.871496372 | Z99: 0.3617589016 | AA99: 0.3071231263
A100: Vitvi00g00922 | B100: 5.729139368 | C100: 5.40450416 | D100: 5.912441916 | E100: 6.563636146 | F100: 6.477200451 | G100: 6.159900961 | H100: 6.400384322 | I100: 6.827495455 | J100: 6.126292078 | K100: 5.934951191 | L100: 6.550103777 | M100: 6.335186941 | N100: 5.916887667 | O100: 6.405106375 | P100: 6.598482781 | Q100: 6.28585779 | R100: 6.513497848 | S100: 6.418855008 | T100: 6.660677037 | U100: 7.179394556 | V100: 6.437531678 | W100: 6.515755615 | X100: 6.675293078 | Y100: 6.29438042 | Z100: 0.5913854883 | AA100: 0.1883174299
A101: Vitvi00g00935 | B101: 4.218854894 | C101: 4.546159175 | D101: 4.244201334 | E101: 4.519113916 | F101: 4.721640904 | G101: 4.608973802 | H101: 4.767051767 | I101: 4.522342961 | J101: 4.670204721 | K101: 4.588913427 | L101: 4.920072512 | M101: 5.117716505 | N101: 4.321461874 | O101: 4.845310545 | P101: 4.551541444 | Q101: 4.470735433 | R101: 4.772867428 | S101: 4.809282273 | T101: 4.660119165 | U101: 4.718255943 | V101: 4.81384563 | W101: 4.949503123 | X101: 4.964336458 | Y101: 4.901886245 | Z101: 0.5391623468 | AA101: 0.3658039875
A102: Vitvi00g00936 | B102: 1.493551901 | C102: 1.60938596 | D102: 0.9806285418 | E102: 1.008070348 | F102: 1.324258051 | G102: 1.112841348 | H102: 1.548865455 | I102: 1.556749802 | J102: 0.9954161789 | K102: 1.178089641 | L102: 1.218592233 | M102: 1.421323008 | N102: 2.030390152 | O102: 2.348725429 | P102: 2.353328266 | Q102: 2.475674923 | R102: 2.591045437 | S102: 2.089741039 | T102: 2.230012161 | U102: 2.566709296 | V102: 2.672202062 | W102: 2.542352476 | X102: 2.104559151 | Y102: 2.107154587 | Z102: -0.08852050677 | AA102: 0.00720745613
A103: Vitvi00g00937 | B103: 3.202136415 | C103: 2.790820283 | D103: 2.919804371 | E103: 2.763372642 | F103: 3.435064799 | G103: 2.762723625 | H103: 2.736707673 | I103: 2.639653864 | J103: 3.192217766 | K103: 3.304255053 | L103: 2.879686653 | M103: 2.908459102 | N103: 1.860659175 | O103: 2.558720804 | P103: 2.361122172 | Q103: 3.185851771 | R103: 2.060203721 | S103: 2.023684747 | T103: 2.60847537 | U103: 2.852277839 | V103: 3.062832728 | W103: 3.026261239 | X103: 3.154976442 | Y103: 2.727675872 | Z103: 0.0598799129 | AA103: 0.7094704669
A104: Vitvi00g00938 | B104: 0.6339504856 | C104: 0.5244962591 | D104: 0 | E104: 0 | F104: 0 | G104: 0 | H104: 0 | I104: 0 | J104: 0 | K104: 0 | L104: 0 | M104: 0 | N104: 0 | O104: 0 | P104: 0 | Q104: 0 | R104: 0 | S104: 0 | T104: 0 | U104: 0 | V104: 0.9236951144 | W104: 0.5803996234 | X104: 0 | Y104: 0.6563243449 | Z104: -0.3861489149 | AA104: 0.4122413228
A105: Vitvi00g00943 | B105: 0.3849146442 | C105: 0.4921071485 | D105: 0.6112844724 | E105: 0.4732085287 | F105: 0.3250918977 | G105: 0.5123616258 | H105: 0.9328380765 | I105: 0.6362239894 | J105: 0.4843700331 | K105: 0.5839597943 | L105: 0.7571825708 | M105: 0.5091904692 | N105: 0.2332374543 | O105: 0.3124611814 | P105: 0.3653719813 | Q105: 0.1768712091 | R105: 0.3092275631 | S105: 0.1945966894 | T105: 0.377277123 | U105: 0.1778539437 | V105: 0.216852126 | W105: 0.6518154382 | X105: 0.1751185092 | Y105: 0.5671784467 | Z105: 0.1206755231 | AA105: 0.1610139257
A106: Vitvi00g00944 | B106: 0 | C106: 0.1639514716 | D106: 0 | E106: 0.2108662436 | F106: 0.1655776435 | G106: 0.3185676956 | H106: 0.869859593 | I106: 0.3452458075 | J106: 0.2414114898 | K106: 0.6141832316 | L106: 0.9163855671 | M106: 0.2511631239 | N106: 0.1847546192 | O106: 0.2422370106 | P106: 0 | Q106: 0.4925360925 | R106: 0.6165651031 | S106: 0.526196928 | T106: 0.4235872335 | U106: 0.3930892157 | V106: 0.3185793641 | W106: 0.67164587 | X106: 0.256890828 | Y106: 0 | Z106: 0.5392601503 | AA106: 0.1671816894
A107: Vitvi00g00946 | B107: 0 | C107: 0 | D107: 0 | E107: 0 | F107: 0 | G107: 0 | H107: 0.5194072748 | I107: 0 | J107: 0 | K107: 0 | L107: 0 | M107: 0 | N107: 0 | O107: 0 | P107: 0 | Q107: 0 | R107: 0 | S107: 1.588825002 | T107: 0 | U107: 0 | V107: 1.697205136 | W107: 0 | X107: 0 | Y107: 0 | Z107: 0 | AA107: 0
A108: Vitvi00g00947 | B108: 1.769823438 | C108: 1.964811168 | D108: 0 | E108: 1.467472067 | F108: 1.117510698 | G108: 1.896739174 | H108: 2.407731981 | I108: 1.782886294 | J108: 2.682183183 | K108: 1.329295906 | L108: 1.579625897 | M108: 0 | N108: 4.023769466 | O108: 3.402249875 | P108: 2.012074328 | Q108: 1.003915797 | R108: 2.674988183 | S108: 1.486185242 | T108: 2.613422408 | U108: 2.643614044 | V108: 2.051053451 | W108: 2.557056871 | X108: 2.230882633 | Y108: 3.307659143 | Z108: -0.2752376007 | AA108: -0.4474983408
A109: Vitvi00g00948 | B109: 2.328948477 | C109: 2.475066329 | D109: 1.839946504 | E109: 1.762583505 | F109: 1.648443948 | G109: 1.629579164 | H109: 1.461505419 | I109: 1.853207506 | J109: 1.277527005 | K109: 2.015587822 | L109: 1.60808146 | M109: 1.681287479 | N109: 1.942722251 | O109: 1.56032638 | P109: 1.238825945 | Q109: 1.388570882 | R109: 2.38974857 | S109: 1.014111918 | T109: 2.146364053 | U109: 1.836577065 | V109: 2.44095109 | W109: 1.440018276 | X109: 1.251725287 | Y109: 2.070808801 | Z109: -0.4463348496 | AA109: 0.006892596008
A110: Vitvi00g00950 | B110: 3.312130859 | C110: 2.904025719 | D110: 3.106189668 | E110: 3.267854542 | F110: 3.032450745 | G110: 3.074260887 | H110: 2.526937615 | I110: 2.688873624 | J110: 3.58684645 | K110: 2.439836271 | L110: 2.87715106 | M110: 3.160283641 | N110: 2.295144031 | O110: 2.791491907 | P110: 3.333371119 | Q110: 2.830442702 | R110: 2.906964731 | S110: 2.779531095 | T110: 2.150330472 | U110: 2.783056776 | V110: 2.93739278 | W110: 3.477405413 | X110: 3.19002983 | Y110: 3.42597154 | Z110: -0.2816917582 | AA110: 0.557799909
A111: Vitvi00g00951 | B111: 0.3731672026 | C111: 0.8928217962 | D111: 0.4739461814 | E111: 1.133775204 | F111: 0.6916852234 | G111: 0.1755495716 | H111: 0.5794607853 | I111: 0.519566427 | J111: 0.2002962195 | K111: 1.212020697 | L111: 0.9794204094 | M111: 0.5204003095 | N111: 0.5728590921 | O111: 0.7934723345 | P111: 0.3132091541 | Q111: 1.054454603 | R111: 1.20483995 | S111: 0.3117751449 | T111: 0.88393454 | U111: 1.082805118 | V111: 1.094738663 | W111: 0.7611160856 | X111: 1.150205966 | Y111: 0.828339352 | Z111: 0.3239687453 | AA111: 0.3533736077
A112: Vitvi00g00956 | B112: 2.022826908 | C112: 2.638127483 | D112: 2.673973269 | E112: 1.615855897 | F112: 2.012399479 | G112: 2.228370067 | H112: 2.679021338 | I112: 2.171436757 | J112: 2.806237098 | K112: 2.785944434 | L112: 2.826569494 | M112: 1.955056702 | N112: 2.522489634 | O112: 2.187353129 | P112: 1.86355089 | Q112: 2.486270503 | R112: 2.07587911 | S112: 3.05446069 | T112: 2.203922136 | U112: 2.108022631 | V112: 2.83405673 | W112: 3.007899111 | X112: 2.259976947 | Y112: 2.508558405 | Z112: 0.07754765676 | AA112: 0.4010136033
A113: Vitvi00g00958 | B113: 0 | C113: 0 | D113: 1.200904563 | E113: 0 | F113: 0 | G113: 0 | H113: 0 | I113: 0 | J113: 0 | K113: 0 | L113: 0 | M113: 0 | N113: 0 | O113: 0 | P113: 0 | Q113: 0 | R113: 0 | S113: 0 | T113: 0 | U113: 0 | V113: 0 | W113: 0 | X113: 0 | Y113: 0 | Z113: -0.400301521 | AA113: 0
A114: Vitvi00g00959 | B114: 0.3580227534 | C114: 0.8872222006 | D114: 1.588707808 | E114: 1.034039365 | F114: 1.695986164 | G114: 1.902091998 | H114: 1.665687809 | I114: 1.622665126 | J114: 1.272207496 | K114: 1.712501966 | L114: 1.580070204 | M114: 0.9412192246 | N114: 1.734199341 | O114: 0.9003077245 | P114: 0.5987097329 | Q114: 0.5662241573 | R114: 1.047337848 | S114: 0.6045607044 | T114: 1.316694491 | U114: 0.6657589207 | V114: 1.45866004 | W114: 1.286079183 | X114: 1.407992351 | Y114: 1.288162409 | Z114: 0.4666128776 | AA114: 0.2496723816
A115: Vitvi00g00960 | B115: 1.252849408 | C115: 0.6850990764 | D115: 1.782424143 | E115: 1.21353436 | F115: 1.546452947 | G115: 1.157522882 | H115: 1.629747494 | I115: 1.945519792 | J115: 1.912278036 | K115: 1.966054164 | L115: 1.430799487 | M115: 1.242984338 | N115: 2.634215192 | O115: 1.752036713 | P115: 1.541165821 | Q115: 0.5275459794 | R115: 0.3942508967 | S115: 1.890237018 | T115: 1.794337006 | U115: 1.151297988 | V115: 1.197476409 | W115: 1.536831664 | X115: 1.446165196 | Y115: 0.682908964 | Z115: 0.306488454 | AA115: -0.7538373011
A116: Vitvi00g00961 | B116: 0.5225371068 | C116: 1.662549567 | D116: 1.583152558 | E116: 1.63593578 | F116: 0.5225088463 | G116: 1.492213417 | H116: 1.190748006 | I116: 1.347485467 | J116: 1.188950095 | K116: 2.048147852 | L116: 1.630566931 | M116: 0.989789032 | N116: 2.244200412 | O116: 0 | P116: 0.8219590159 | Q116: 0.7976352019 | R116: 0.6979835219 | S116: 1.361492696 | T116: 1.527072062 | U116: 1.446193163 | V116: 0 | W116: 0.8293112004 | X116: 1.636052771 | Y116: 0.8894993151 | Z116: 0.3000881948 | AA116: 0.0962346193
A117: Vitvi00g00972 | B117: 0.6796472148 | C117: 0 | D117: 0.6544459731 | E117: 0 | F117: 0 | G117: 0 | H117: 0 | I117: 0 | J117: 0 | K117: 0 | L117: 0.6642702395 | M117: 0 | N117: 0 | O117: 0 | P117: 0 | Q117: 0 | R117: 0 | S117: 0 | T117: 0 | U117: 0 | V117: 0 | W117: 0.7102463959 | X117: 0 | Y117: 0 | Z117: -0.2232743161 | AA117: 0.2367487986
A118: Vitvi00g00973 | B118: 4.653172087 | C118: 4.822530328 | D118: 4.490004851 | E118: 4.977128558 | F118: 4.823587933 | G118: 5.380183209 | H118: 4.761169867 | I118: 4.92907337 | J118: 4.419212743 | K118: 4.516695973 | L118: 4.979367722 | M118: 3.247164846 | N118: 1.768128187 | O118: 0.8608630867 | P118: 0.4033515681 | Q118: 1.33255393 | R118: 0.6251789321 | S118: 0.7337314607 | T118: 0.7789834051 | U118: 0.9325762157 | V118: 0.4560886897 | W118: 0.218947553 | X118: 1.476707021 | Y118: 0 | Z118: -0.4074929082 | AA118: -0.4455627558
A119: Vitvi00g00974 | B119: 3.922669951 | C119: 4.285671413 | D119: 4.481661765 | E119: 3.84373417 | F119: 3.874409804 | G119: 4.468322194 | H119: 4.159952971 | I119: 4.525342654 | J119: 4.248955678 | K119: 4.034193442 | L119: 4.20864264 | M119: 4.297909492 | N119: 3.081319324 | O119: 3.27401796 | P119: 3.336023468 | Q119: 3.30571531 | R119: 3.010071303 | S119: 3.697413412 | T119: 3.871568531 | U119: 3.701534123 | V119: 3.793019849 | W119: 3.939369885 | X119: 3.621295868 | Y119: 4.117661305 | Z119: -0.04975251822 | AA119: 0.6623221018
A120: Vitvi00g00980 | B120: 0 | C120: 0 | D120: 0 | E120: 0 | F120: 0 | G120: 0 | H120: 1.264068301 | I120: 1.36648041 | J120: 0 | K120: 1.136342571 | L120: 0 | M120: 0 | N120: 0 | O120: 0 | P120: 1.791604448 | Q120: 0 | R120: 0 | S120: 0 | T120: 0 | U120: 0 | V120: 0 | W120: 0 | X120: 0 | Y120: 0 | Z120: 0.3787808571 | AA120: -0.5972014827
A121: Vitvi00g00983 | B121: 3.508923096 | C121: 3.84899317 | D121: 3.72111547 | E121: 3.543256794 | F121: 4.372068024 | G121: 3.627839571 | H121: 3.751556463 | I121: 3.862363155 | J121: 3.553461443 | K121: 3.344364054 | L121: 3.91645476 | M121: 4.022998434 | N121: 3.389166735 | O121: 4.24691981 | P121: 3.319100232 | Q121: 3.434962169 | R121: 3.566667092 | S121: 3.794291172 | T121: 3.524170183 | U121: 3.11523594 | V121: 3.744361059 | W121: 3.63032011 | X121: 3.050946971 | Y121: 3.454332792 | Z121: 0.06826183732 | AA121: -0.2731956346
A122: Vitvi00g00985 | B122: 0 | C122: 0 | D122: 0 | E122: 0 | F122: 0 | G122: 0 | H122: 0 | I122: 0 | J122: 0 | K122: 0 | L122: 0 | M122: 0 | N122: 0 | O122: 0 | P122: 0 | Q122: 0 | R122: 0.4381638961 | S122: 0 | T122: 0 | U122: 0 | V122: 0 | W122: 0 | X122: 0 | Y122: 0 | Z122: 0 | AA122: 0
A123: Vitvi00g00988 | B123: 1.598302798 | C123: 0.7360018197 | D123: 0.6857072889 | E123: 1.661467854 | F123: 0 | G123: 0.8204253007 | H123: 0.9621641621 | I123: 1.621759361 | J123: 1.100470102 | K123: 1.218050348 | L123: 1.191920943 | M123: 1.201910011 | N123: 0 | O123: 0 | P123: 0 | Q123: 0 | R123: 0 | S123: 0.8711114588 | T123: 0 | U123: 0 | V123: 0.03626869177 | W123: 0 | X123: 0 | Y123: 0 | Z123: 0.1972897983 | AA123: 0
A124: Vitvi00g00989 | B124: 0.8665743994 | C124: 0.8548236405 | D124: 0.4380665107 | E124: 0.506424268 | F124: 0.8839304534 | G124: 0.473298694 | H124: 0.6420303622 | I124: 0.7335301044 | J124: 0.7950039279 | K124: 0.913285925 | L124: 0.6141533787 | M124: 0.9584161833 | N124: 0.8197705874 | O124: 0.695788147 | P124: 0.5022590006 | Q124: 0.4659150711 | R124: 0.3419967328 | S124: 1.311669158 | T124: 1.099973081 | U124: 0.3708480053 | V124: 1.655712663 | W124: 0.9204867602 | X124: 0.6714822693 | Y124: 0.6682438737 | Z124: 0.1087969788 | AA124: 0.08079838941
A125: Vitvi00g00993 | B125: 1.011491099 | C125: 0 | D125: 1.695436161 | E125: 0 | F125: 2.405835757 | G125: 2.34886371 | H125: 1.024293204 | I125: 1.285968801 | J125: 1.482731782 | K125: 0 | L125: 2.172862874 | M125: 1.282783357 | N125: 1.853421439 | O125: 2.836503079 | P125: 2.224671752 | Q125: 0 | R125: 0 | S125: 2.053745505 | T125: 2.807178589 | U125: 2.294543366 | V125: 2.821729485 | W125: 1.089656491 | X125: 2.747768952 | Y125: 3.024189598 | Z125: 0.2495729906 | AA125: -0.0176604097
A126: Vitvi00g00994 | B126: 3.215385507 | C126: 3.400190402 | D126: 2.94628445 | E126: 3.319718985 | F126: 3.037702001 | G126: 2.907979159 | H126: 3.047384229 | I126: 3.62944317 | J126: 3.103088828 | K126: 3.411417575 | L126: 3.381002325 | M126: 3.204922275 | N126: 2.719792204 | O126: 3.305303819 | P126: 2.886230647 | Q126: 2.849880454 | R126: 3.162220196 | S126: 2.845110462 | T126: 3.090228971 | U126: 3.159014673 | V126: 3.240148679 | W126: 3.923216204 | X126: 3.507532429 | Y126: 3.997188707 | Z126: 0.145160605 | AA126: 0.8388702233
A127: Vitvi00g00996 | B127: 0 | C127: 0.8342845359 | D127: 0 | E127: 0 | F127: 0.4457877618 | G127: 1.334945097 | H127: 0.6344896807 | I127: 0.766887072 | J127: 0.9165055034 | K127: 0 | L127: 0 | M127: 0.01998157562 | N127: 0.006386752677 | O127: 0 | P127: 0 | Q127: 0.05073738439 | R127: 0.2806369982 | S127: 0.1002245622 | T127: 0.005643008503 | U127: 0 | V127: 0.1430376733 | W127: 0.7203752014 | X127: 0 | Y127: 0 | Z127: -0.2714343201 | AA127: 0.2379961496
A128: Vitvi00g00997 | B128: 2.713951086 | C128: 2.560574443 | D128: 2.887136713 | E128: 2.914744423 | F128: 3.015339224 | G128: 3.220801022 | H128: 3.38535686 | I128: 2.872659781 | J128: 2.825874251 | K128: 3.347904509 | L128: 3.634017801 | M128: 3.489866266 | N128: 2.588777854 | O128: 3.230532476 | P128: 2.856469843 | Q128: 1.44673716 | R128: 2.333152082 | S128: 2.705326511 | T128: 3.316292106 | U128: 2.864674754 | V128: 2.86783265 | W128: 2.898780025 | X128: 2.478865415 | Y128: 3.325858025 | Z128: 0.7700421114 | AA128: 0.00924109706
A129: Vitvi00g01001 | B129: 0 | C129: 0 | D129: 0.3497775432 | E129: 0 | F129: 0 | G129: 0 | H129: 0 | I129: 0 | J129: 0 | K129: 0 | L129: 0.002544010839 | M129: 0 | N129: 0 | O129: 0 | P129: 0 | Q129: 0 | R129: 0 | S129: 0 | T129: 0.693285243 | U129: 0 | V129: 9.50E-07 | W129: 0.3427994595 | X129: 9.85E-07 | Y129: 0 | Z129: -0.1157445108 | AA129: 0.1142668147
A130: Vitvi00g01005 | B130: 4.661263347 | C130: 3.71858753 | D130: 2.264795909 | E130: 3.462893894 | F130: 0 | G130: 4.491086648 | H130: 4.128526852 | I130: 5.065944028 | J130: 0 | K130: 6.532237784 | L130: 3.665459503 | M130: 4.487069454 | N130: 2.427968457 | O130: 0 | P130: 4.824802405 | Q130: 3.809935736 | R130: 0 | S130: 3.04209577 | T130: 4.024811706 | U130: 2.923833471 | V130: 3.189050134 | W130: 2.210527543 | X130: 4.362862151 | Y130: 4.100776563 | Z130: 1.346706652 | AA130: 1.140465131
A131: Vitvi00g01011 | B131: 6.1589261 | C131: 6.044983561 | D131: 5.84671152 | E131: 6.313340951 | F131: 6.182668726 | G131: 5.985419144 | H131: 6.193327308 | I131: 6.888742216 | J131: 6.137175877 | K131: 5.890929493 | L131: 6.303622001 | M131: 6.660010219 | N131: 6.032024081 | O131: 6.469190933 | P131: 6.689769599 | Q131: 6.882994967 | R131: 6.526883385 | S131: 6.530813426 | T131: 6.852574061 | U131: 7.110393976 | V131: 6.618263666 | W131: 6.712400316 | X131: 6.668994983 | Y131: 6.514189263 | Z131: 0.2679801777 | AA131: 0.2348666496
A132: Vitvi00g01013 | B132: 3.812868145 | C132: 3.786948771 | D132: 3.544495431 | E132: 3.948675683 | F132: 4.187206206 | G132: 3.370113548 | H132: 3.662283881 | I132: 3.459178957 | J132: 3.970256815 | K132: 3.842082998 | L132: 3.441429914 | M132: 3.083058918 | N132: 3.457083727 | O132: 3.959989565 | P132: 3.774107511 | Q132: 3.963242413 | R132: 3.780143403 | S132: 4.115005397 | T132: 3.983962359 | U132: 3.79500194 | V132: 3.618835756 | W132: 3.985513311 | X132: 3.988765847 | Y132: 3.967345748 | Z132: =AVERAGE(K132:M132)-AVERAGE(B132:D132) -> -0.2592468388 | AA132: =AVERAGE(W132:Y132)-AVERAGE(N132:P132) -> 0.2501480344
A133: Vitvi00g01016 | B133: 0 | C133: 0 | D133: 0 | E133: 0 | F133: 0 | G133: 0 | H133: 0 | I133: 0 | J133: 0 | K133: 0 | L133: 0 | M133: 0 | N133: 0.1323148496 | O133: 1.684491878 | P133: 1.388051581 | Q133: 0 | R133: 0.1578120455 | S133: 0 | T133: 1.516014446 | U133: 0 | V133: 0 | W133: 0.5367138639 | X133: 0 | Y133: 0.2945602301 | Z133: 0 | AA133: -0.791194738
A134: Vitvi00g01018 | B134: 1.516844436 | C134: 2.13481769 | D134: 1.587580105 | E134: 1.629841871 | F134: 1.739990923 | G134: 1.128136908 | H134: 0.9859106491 | I134: 1.518976424 | J134: 1.364628339 | K134: 0.8315358854 | L134: 1.138268129 | M134: 1.273779489 | N134: 1.892654419 | O134: 2.160799571 | P134: 1.894305434 | Q134: 1.046527921 | R134: 1.701822547 | S134: 1.966777848 | T134: 1.176552769 | U134: 1.351190644 | V134: 1.711709614 | W134: 0.6043896016 | X134: 1.077610004 | Y134: 1.020891346 | Z134: -0.6652195761 | AA134: -1.081622824
A135: Vitvi00g01019 | B135: 4.130563443 | C135: 3.581082509 | D135: 4.965498346 | E135: 2.889814338 | F135: 4.088648929 | G135: 4.318904123 | H135: 4.34004388 | I135: 3.930351957 | J135: 4.556615843 | K135: 3.9860645 | L135: 4.919602808 | M135: 4.118933362 | N135: 3.349432488 | O135: 4.866352017 | P135: 4.039223759 | Q135: 4.060197666 | R135: 4.367770957 | S135: 4.713513022 | T135: 4.978482048 | U135: 4.411672341 | V135: 3.98926587 | W135: 4.888877752 | X135: 3.873026034 | Y135: 4.550116267 | Z135: 0.1158187907 | AA135: 0.3523372631
A136: Vitvi00g01020 | B136: 0.9364154449 | C136: 0.4278180593 | D136: 0.8450909851 | E136: 1.439373428 | F136: 0.8816302712 | G136: 0.9617232914 | H136: 1.29762958 | I136: 2.119461414 | J136: 0.8134033907 | K136: 1.109118421 | L136: 1.049517726 | M136: 0.6740111683 | N136: 0.258662994 | O136: 0.8252102741 | P136: 0.767595032 | Q136: 0.3512683666 | R136: 0.5300857005 | S136: 0.8798509664 | T136: 1.088762392 | U136: 1.095951654 | V136: 0.7864044368 | W136: 1.573773634 | X136: 1.081443945 | Y136: 1.095249721 | Z136: 0.2077742753 | AA136: 0.6329996669
A137: Vitvi00g01021 | B137: 0 | C137: 0 | D137: 0.7566727054 | E137: 0.6952680477 | F137: 0.8549121074 | G137: 0 | H137: 0.4505130509 | I137: 1.53216774 | J137: 0.7980293977 | K137: 1.918052087 | L137: 1.695802979 | M137: 1.251455835 | N137: 1.018080837 | O137: 0 | P137: 0.8659077966 | Q137: 0 | R137: 0 | S137: 1.44704874 | T137: 1.567642972 | U137: 1.084802895 | V137: 1.391624191 | W137: 2.010007737 | X137: 1.954516201 | Y137: 0.9528860816 | Z137: 1.369546066 | AA137: 1.011140462
A138: Vitvi00g01022 | B138: 5.708207474 | C138: 6.045995946 | D138: 5.450133929 | E138: 5.885572998 | F138: 5.730660711 | G138: 5.365927719 | H138: 5.720150576 | I138: 5.482483417 | J138: 5.497709221 | K138: 5.097545203 | L138: 5.5853063 | M138: 5.835205284 | N138: 4.768387621 | O138: 5.21704618 | P138: 4.732341957 | Q138: 4.70546933 | R138: 5.129554995 | S138: 5.021150364 | T138: 4.810705558 | U138: 5.028316851 | V138: 4.869417113 | W138: 5.622442939 | X138: 5.556775825 | Y138: 5.598671463 | Z138: -0.2287601872 | AA138: 0.6867048234
A139: Vitvi00g01028 | B139: 0 | C139: 0 | D139: 0 | E139: 0 | F139: 0 | G139: 0 | H139: 0 | I139: 0 | J139: 0 | K139: 0 | L139: 0 | M139: 0 | N139: 0 | O139: 0 | P139: 0 | Q139: 0 | R139: 0 | S139: 0 | T139: 0 | U139: 0 | V139: 0 | W139: 0 | X139: 0 | Y139: 0 | Z139: 0 | AA139: 0
A140: Vitvi00g01029 | B140: 0 | C140: 0 | D140: 0 | E140: 0 | F140: 0 | G140: 0 | H140: 0 | I140: 0 | J140: 0 | K140: 0 | L140: 0 | M140: 0 | N140: 0 | O140: 0 | P140: 0 | Q140: 0 | R140: 0 | S140: 0 | T140: 0 | U140: 0 | V140: 0 | W140: 0 | X140: 0 | Y140: 0 | Z140: 0 | AA140: 0
A141: Vitvi00g01030 | B141: 0 | C141: 0 | D141: 0 | E141: 0 | F141: 0 | G141: 0 | H141: 0 | I141: 0 | J141: 0 | K141: 0 | L141: 0 | M141: 0.4491159485 | N141: 0 | O141: 0 | P141: 0 | Q141: 0 | R141: 0 | S141: 0 | T141: 0 | U141: 0 | V141: 0 | W141: 0.368556526 | X141: 0 | Y141: 0.7282962227 | Z141: 0.1497053162 | AA141: 0.3656175829
A142: Vitvi00g01036 | B142: 3.583096376 | C142: 3.774052022 | D142: 3.066901165 | E142: 3.119433876 | F142: 2.981165096 | G142: 3.069817464 | H142: 2.99074183 | I142: 3.163650405 | J142: 2.766500716 | K142: 2.708079966 | L142: 3.058726422 | M142: 3.256616194 | N142: 2.375494539 | O142: 2.981841641 | P142: 2.0419733 | Q142: 3.261530684 | R142: 2.800325753 | S142: 3.112350927 | T142: 3.209426284 | U142: 2.549370718 | V142: 3.511746623 | W142: 3.173849412 | X142: 3.161167612 | Y142: 2.889429726 | Z142: -0.4668756605 | AA142: 0.6083790899
A143: Vitvi00g01038 | B143: 2.317686716 | C143: 2.469829216 | D143: 2.707689967 | E143: 2.48278418 | F143: 2.667396277 | G143: 2.837299125 | H143: 3.056018243 | I143: 2.974133514 | J143: 2.26061654 | K143: 2.006320879 | L143: 2.722634218 | M143: 3.244241283 | N143: 3.69491409 | O143: 2.979282014 | P143: 2.241671413 | Q143: 2.588192503 | R143: 2.809820308 | S143: 3.039339641 | T143: 2.066522927 | U143: 1.605871438 | V143: 3.470805203 | W143: 1.257803134 | X143: 2.641941101 | Y143: 0 | Z143: 0.1593301607 | AA143: -1.672041094
A144: Vitvi00g01039 | B144: 0.5317107475 | C144: 1.535099347 | D144: 1.234681546 | E144: 0.9893074243 | F144: 1.037757886 | G144: 1.590665294 | H144: 1.402457916 | I144: 1.368306941 | J144: 1.150745339 | K144: 1.271206845 | L144: 0 | M144: 1.212674549 | N144: 0.4535494045 | O144: 0 | P144: 0 | Q144: 1.50458928 | R144: 0 | S144: 1.031158266 | T144: 0.6982205975 | U144: 0.4555283527 | V144: 0.9188079139 | W144: 1.096885767 | X144: 0.7404736524 | Y144: 0 | Z144: -0.2725367489 | AA144: 0.461270005
A145: Vitvi00g01043 | B145: 3.307912386 | C145: 3.372554198 | D145: 3.351792884 | E145: 2.972523161 | F145: 3.39699186 | G145: 3.421142186 | H145: 3.184224684 | I145: 2.798892648 | J145: 2.7116261 | K145: 2.592625991 | L145: 2.518223947 | M145: 3.084288288 | N145: 2.731859217 | O145: 2.817841061 | P145: 2.75152994 | Q145: 1.064947195 | R145: 1.322478011 | S145: 2.422197387 | T145: 2.373052565 | U145: 2.572352566 | V145: 2.694362883 | W145: 1.873165339 | X145: 2.967658984 | Y145: 1.749584153 | Z145: -0.6123737476 | AA145: -0.5702739139
A146: Vitvi00g01046 | B146: 0.5477789704 | C146: 0.5610387489 | D146: 0.5438678942 | E146: 0 | F146: 0 | G146: 0 | H146: 0.8149914015 | I146: 1.067462232 | J146: 0.578059688 | K146: 0 | L146: 0.5565116752 | M146: 0 | N146: 0 | O146: 0 | P146: 0 | Q146: 0.9566497104 | R146: 0 | S146: 0.992274536 | T146: 0.7253146667 | U146: 0 | V146: 0 | W146: 0 | X146: 0.9163827946 | Y146: 0 | Z146: -0.3653913128 | AA146: 0.3054609315
A147: Vitvi00g01047 | B147: 2.243206956 | C147: 1.913643617 | D147: 2.149692694 | E147: 2.056531696 | F147: 0.1858350617 | G147: 1.974023817 | H147: 2.302823552 | I147: 2.946984848 | J147: 1.765961962 | K147: 2.345975426 | L147: 2.486349388 | M147: 3.333484827 | N147: 1.590800527 | O147: 2.881744066 | P147: 2.227862575 | Q147: 2.624549872 | R147: 2.068197441 | S147: 2.74832027 | T147: 2.506397954 | U147: 2.467932182 | V147: 2.738724166 | W147: 2.612054417 | X147: 1.628210187 | Y147: 2.379064991 | Z147: 0.6197554583 | AA147: -0.02702585766
A148: Vitvi00g01048 | B148: 4.327953483 | C148: 4.301746818 | D148: 3.909392836 | E148: 4.424770975 | F148: 4.115292715 | G148: 4.141312713 | H148: 4.423511275 | I148: 4.080567712 | J148: 4.289525312 | K148: 4.102320492 | L148: 4.317290313 | M148: 4.292506156 | N148: 3.668176729 | O148: 4.367425865 | P148: 4.217161869 | Q148: 4.143494341 | R148: 4.104489754 | S148: 4.273075813 | T148: 4.621270218 | U148: 4.440249072 | V148: 4.185806648 | W148: 4.671914651 | X148: 4.340389331 | Y148: 4.351446383 | Z148: 0.05767460816 | AA148: 0.3703286341
A149: Vitvi00g01060 | B149: 0.4746609234 | C149: 0.04645431938 | D149: 0.8387827367 | E149: 0 | F149: 0.0002458712549 | G149: 1.393702751 | H149: 1.20824298 | I149: 0.6269097037 | J149: 1.711557309 | K149: 0 | L149: 0.9460900706 | M149: 1.712890367 | N149: 0.6538068555 | O149: 0 | P149: 0.9575271606 | Q149: 0.3442303674 | R149: 0 | S149: 1.309012509 | T149: 1.044056913 | U149: 0.08679826891 | V149: 0.6158368422 | W149: 1.301757017 | X149: 1.835326778 | Y149: 0 | Z149: 0.433027486 | AA149: 0.5085832594
A150: Vitvi00g01061 | B150: 3.219004175 | C150: 3.336879017 | D150: 3.115447691 | E150: 3.641871294 | F150: 3.871993372 | G150: 3.565012153 | H150: 3.156485438 | I150: 3.714376794 | J150: 3.592686391 | K150: 2.823442459 | L150: 3.258871094 | M150: 3.443622421 | N150: 3.07879202 | O150: 3.588476027 | P150: 3.35740987 | Q150: 3.480232728 | R150: 3.765543213 | S150: 3.103324997 | T150: 3.731481609 | U150: 3.898901623 | V150: 3.475361815 | W150: 3.35580419 | X150: 3.573875131 | Y150: 3.216188974 | Z150: -0.04846496967 | AA150: 0.04039679227
A151: Vitvi00g01062 | B151: 0 | C151: 0.27046708 | D151: 0.2405279013 | E151: 0 | F151: 0 | G151: 0 | H151: 0.240719231 | I151: 0 | J151: 0 | K151: 0.03303943049 | L151: 0.265528846 | M151: 0.3003438391 | N151: 0 | O151: 0 | P151: 1.004098497 | Q151: 0 | R151: 0 | S151: 0 | T151: 0.1823237059 | U151: 0.1768752163 | V151: 0 | W151: 0 | X151: 0 | Y151: 0 | Z151: 0.02930571146 | AA151: -0.3346994991
A152: Vitvi00g01079 | B152: 1.737627914 | C152: 1.030764436 | D152: 0 | E152: 1.771299294 | F152: 0.8309928946 | G152: 0 | H152: 0 | I152: 1.338722308 | J152: 1.230962227 | K152: 2.540688742 | L152: 0.7255441135 | M152: 0.9700021234 | N152: 0.9164966359 | O152: 0 | P152: 0 | Q152: 0 | R152: 0 | S152: 0 | T152: 0 | U152: 0 | V152: 1.415931372 | W152: 1.353553229 | X152: 1.854242304 | Y152: 2.215847208 | Z152: 0.4892808764 | AA152: 1.502382035
A153: Vitvi00g01091 | B153: 0 | C153: 0 | D153: 0 | E153: 0 | F153: 0 | G153: 0 | H153: 0 | I153: 0 | J153: 0 | K153: 1.686811373 | L153: 0 | M153: 0 | N153: 0 | O153: 0 | P153: 0 | Q153: 0 | R153: 0 | S153: 0 | T153: 0 | U153: 0 | V153: 0 | W153: 0 | X153: 0 | Y153: 0 | Z153: 0.5622704578 | AA153: 0
A154: Vitvi00g01092 | B154: 1.268162171 | C154: 0.395691105 | D154: 2.002484357 | E154: 0 | F154: 0 | G154: 1.242910975 | H154: 1.005399792 | I154: 1.45423745 | J154: 0.4045435048 | K154: 0.792657601 | L154: 0.6116194309 | M154: 0.9589696583 | N154: 0.5805395304 | O154: 0 | P154: 1.741144186 | Q154: 0.6908550559 | R154: 0 | S154: 0.7615356596 | T154: 0.03317399056 | U154: 0.9214798496 | V154: 0 | W154: 1.306501454 | X154: 0 | Y154: 0 | Z154: -0.4343636477 | AA154: -0.3383940877
A155: Vitvi00g01096 | B155: 2.009857251 | C155: 2.556024327 | D155: 2.233091257 | E155: 2.160595913 | F155: 2.467551532 | G155: 1.774704674 | H155: 2.561290331 | I155: 2.435538721 | J155: 2.802055951 | K155: 2.171137303 | L155: 2.778325755 | M155: 3.730792485 | N155: 2.426638115 | O155: 2.651489384 | P155: 2.557418615 | Q155: 2.397636738 | R155: 2.677801673 | S155: 2.056584521 | T155: 2.100252605 | U155: 3.250291705 | V155: 3.15041304 | W155: 3.149481918 | X155: 2.759205883 | Y155: 3.044136278 | Z155: 0.6270942365 | AA155: 0.4390926548
A156: Vitvi00g01098 | B156: 3.265401751 | C156: 3.42158899 | D156: 2.777426295 | E156: 2.326700322 | F156: 3.092959992 | G156: 2.643591911 | H156: 2.317036308 | I156: 2.221385109 | J156: 2.384092322 | K156: 2.137617695 | L156: 2.291438195 | M156: 2.109982333 | N156: 3.999132295 | O156: 4.305231143 | P156: 3.97259788 | Q156: 3.345937733 | R156: 3.849631642 | S156: 3.617391856 | T156: 3.231113934 | U156: 2.903409149 | V156: 3.890660226 | W156: 3.134273134 | X156: 3.012778952 | Y156: 2.772638867 | Z156: -0.9751262709 | AA156: -1.119090121
A157: Vitvi00g01101 | B157: 0.07328698246 | C157: 0 | D157: 0.06943470975 | E157: 0.05344483755 | F157: 0.3025957309 | G157: 0.0301091752 | H157: 0 | I157: 0.03472731118 | J157: 0.8167937766 | K157: 0.05722288319 | L157: 0.03163998657 | M157: 0.004878985961 | N157: 0 | O157: 0.02206283332 | P157: 0.00641962501 | Q157: 0.01224670418 | R157: 0.2528745587 | S157: 0.5069560653 | T157: 0.07112292252 | U157: 0.0305366008 | V157: 0 | W157: 0.305929795 | X157: 0.5669591272 | Y157: 0.0221778707 | Z157: -0.01632661216 | AA157: 0.2888614448
A158: Vitvi00g01102 | B158: 1.054169631 | C158: 1.382239047 | D158: 1.261345386 | E158: 0.9489697824 | F158: 1.000478419 | G158: 1.020338127 | H158: 1.384505356 | I158: 0.960292236 | J158: 1.234768609 | K158: 1.440677359 | L158: 1.568477442 | M158: 1.588132894 | N158: 0.4674592904 | O158: 1.097002792 | P158: 1.155408505 | Q158: 0.92225326 | R158: 1.337618295 | S158: 0.8804148864 | T158: 0.7080099501 | U158: 0.9516517671 | V158: 0.9021625565 | W158: 1.331060348 | X158: 1.264597913 | Y158: 0.6703501178 | Z158: 0.2998445435 | AA158: 0.1820459306
A159: Vitvi00g01105 | B159: 5.235507292 | C159: 5.445929321 | D159: 5.294510389 | E159: 5.516483051 | F159: 5.334262897 | G159: 5.259682812 | H159: 5.343550256 | I159: 5.245087657 | J159: 5.220687071 | K159: 5.232027173 | L159: 5.322962578 | M159: 5.124232999 | N159: 5.291459759 | O159: 5.2585966 | P159: 5.217870061 | Q159: 5.619959551 | R159: 5.091417321 | S159: 5.150513318 | T159: 5.270461488 | U159: 5.169260427 | V159: 5.182792924 | W159: 5.677287599 | X159: 5.60538907 | Y159: 5.396265462 | Z159: -0.09890808399 | AA159: 0.3036719031
A160: Vitvi00g01106 | B160: 0.6238103248 | C160: 1.263931029 | D160: 0.5869048304 | E160: 1.029842067 | F160: 0 | G160: 0.9870539874 | H160: 0.2716497733 | I160: 0.3915304476 | J160: 0 | K160: 0.870252437 | L160: 0.6008724149 | M160: 0 | N160: 0 | O160: 0.9827855391 | P160: 1.874989105 | Q160: 1.513966758 | R160: 1.140002108 | S160: 0.9351141203 | T160: 1.366028651 | U160: 1.404353064 | V160: 1.545224004 | W160: 1.323144767 | X160: 0 | Y160: 1.467238196 | Z160: -0.3345071106 | AA160: -0.02246389404
A161: Vitvi00g01109 | B161: 0.2472460195 | C161: 0.1825465949 | D161: 0 | E161: 0.5036131569 | F161: 0.1718811098 | G161: 0.4995055368 | H161: 0 | I161: 0.4378356012 | J161: 0.1584033345 | K161: 0.7378445772 | L161: 0.1343153126 | M161: 0 | N161: 0.5681131157 | O161: 0 | P161: 0.2278658845 | Q161: 0 | R161: 0.2996641167 | S161: 0.4658002668 | T161: 0.4521568099 | U161: 0 | V161: 0 | W161: 0.2489347493 | X161: 0.4685862685 | Y161: 0 | Z161: 0.1474557585 | AA161: -0.0261526608
A162: Vitvi00g01110 | B162: 3.551908941 | C162: 3.420312963 | D162: 3.51479364 | E162: 3.894853129 | F162: 3.755163039 | G162: 3.607136392 | H162: 3.576400225 | I162: 3.528964667 | J162: 3.481883017 | K162: 4.148014915 | L162: 3.972048646 | M162: 3.782419357 | N162: 3.120893515 | O162: 3.638045705 | P162: 3.204818087 | Q162: 3.516510415 | R162: 3.058433788 | S162: 3.552667037 | T162: 3.697931777 | U162: 3.316955027 | V162: 3.783368052 | W162: 3.894246147 | X162: 3.994503793 | Y162: 3.902790831 | Z162: 0.471822458 | AA162: 0.6092611543
A163: Vitvi00g01115 | B163: 0 | C163: 0.8811731323 | D163: 0.8919217269 | E163: 0 | F163: 0.9492009323 | G163: 1.501179604 | H163: 1.503948501 | I163: 1.54317835 | J163: 0 | K163: 0 | L163: 0.8994958487 | M163: 1.460032272 | N163: 0.9157616682 | O163: 1.177948982 | P163: 1.321628238 | Q163: 0 | R163: 1.182251984 | S163: 0 | T163: 0 | U163: 0 | V163: 1.414363438 | W163: 0.7859752449 | X163: 0 | Y163: 0 | Z163: 0.1954777539 | AA163: -0.8764545478
A164: Vitvi00g01116 | B164: 0.5244990393 | C164: 0.3418003135 | D164: 0.1121968831 | E164: 0.3812756064 | F164: 0.1399201763 | G164: 0.1285220421 | H164: 0.2249714353 | I164: 0.6209563253 | J164: 0.2284591865 | K164: 0.2387442009 | L164: 0.1328929683 | M164: 0.5594040057 | N164: 0 | O164: 0.192819291 | P164: 0.7294855827 | Q164: 0.2182869825 | R164: 0 | S164: 0.2284447598 | T164: 0.6463289888 | U164: 0.1118901186 | V164: 0.6471177574 | W164: 0.1150142856 | X164: 0.1985325553 | Y164: 0.2414296644 | Z164: -0.01581835367 | AA164: -0.1224427895
A165: Vitvi00g01118 | B165: 0.5513487489 | C165: 0 | D165: 0.5757437997 | E165: 0.9204234524 | F165: 0.01925099605 | G165: 0 | H165: 0.2852649335 | I165: 0.7639070502 | J165: 0.4827472393 | K165: 0.5477069734 | L165: 0 | M165: 0.90118212 | N165: 0.1889530036 | O165: 0.7627012607 | P165: 0.1455826197 | Q165: 0 | R165: 0.5916571846 | S165: 0.6763689055 | T165: 0.5283105594 | U165: 0 | V165: 0 | W165: 0.9617343039 | X165: 0.6427802245 | Y165: 1.209532556 | Z165: 0.107265515 | AA165: 0.572270067
A166: Vitvi00g01122 | B166: 0 | C166: 0 | D166: 0.2660799819 | E166: 0 | F166: 0 | G166: 0.3016169631 | H166: 0 | I166: 0.3375001233 | J166: 0.523390365 | K166: 0.2883433429 | L166: 0.2671527616 | M166: 0 | N166: 0.2742318657 | O166: 0 | P166: 0 | Q166: 0 | R166: 0 | S166: 0 | T166: 0.8230588273 | U166: 0 | V166: 0.4814484208 | W166: 0.7876027421 | X166: 0 | Y166: 0.4842199503 | Z166: 0.09647204085 | AA166: 0.3325302756
A167: Vitvi00g01123 | B167: 1.613924 | C167: 2.711787329 | D167: 2.012528556 | E167: 2.24412381 | F167: 2.108234299 | G167: 1.703249331 | H167: 1.752389252 | I167: 2.193460753 | J167: 1.801757458 | K167: 2.416822182 | L167: 2.017807682 | M167: 1.801531103 | N167: 2.287689061 | O167: 2.128745122 | P167: 2.439911479 | Q167: 1.782146719 | R167: 1.683832905 | S167: 1.427572186 | T167: 2.077188963 | U167: 1.726273875 | V167: 2.231291028 | W167: 1.805407931 | X167: 1.87446285 | Y167: 1.232410102 | Z167: -0.03402630598 | AA167: -0.6480215927
A168: Vitvi00g01126 | B168: 0 | C168: 0.2324781453 | D168: 0.7620033416 | E168: 0 | F168: 0.7834895044 | G168: 1.419466326 | H168: 0 | I168: 0.8933207352 | J168: 0.5338698194 | K168: 0.002566506153 | L168: 0.5673018338 | M168: 0 | N168: 0 | O168: 0 | P168: 0 | Q168: 0 | R168: 0 | S168: 0 | T168: 0 | U168: 0.2410347262 | V168: 1.036018178 | W168: 0.8407546997 | X168: 0 | Y168: 0 | Z168: -0.1415377157 | AA168: 0.2802515666
A169: Vitvi00g01134 | B169: 4.510728723 | C169: 4.307842504 | D169: 4.488297002 | E169: 4.484351611 | F169: 4.868000132 | G169: 4.727151634 | H169: 4.499216672 | I169: 5.057220768 | J169: 4.489422804 | K169: 5.05612244 | L169: 4.939941865 | M169: 4.765646283 | N169: 4.41680182 | O169: 4.628461715 | P169: 4.731936494 | Q169: 4.395378933 | R169: 4.270094516 | S169: 4.733042059 | T169: 4.47544567 | U169: 4.388582864 | V169: 5.132087283 | W169: 5.486438845 | X169: 5.092485248 | Y169: 5.519588894 | Z169: 0.4849474525 | AA169: 0.7737709858
A170: Vitvi00g01144 | B170: 3.1781976 | C170: 3.020981744 | D170: 3.282262602 | E170: 3.144611445 | F170: 3.09719551 | G170: 3.286797868 | H170: 3.38848371 | I170: 3.184070806 | J170: 3.216351229 | K170: 2.845231126 | L170: 3.246327941 | M170: 3.184768594 | N170: 2.431710673 | O170: 3.371380986 | P170: 2.506594717 | Q170: 2.967332705 | R170: 3.174684471 | S170: 2.736747634 | T170: 2.355920964 | U170: 3.035600334 | V170: 2.869580853 | W170: 3.557953284 | X170: 3.201836818 | Y170: 3.405386606 | Z170: -0.06837142861 | AA170: 0.6184967774
A171: Vitvi00g01145 | B171: 5.133038878 | C171: 5.237955081 | D171: 4.881931106 | E171: 4.760411035 | F171: 4.838034501 | G171: 5.191299128 | H171: 4.715355857 | I171: 4.858437882 | J171: 4.667650518 | K171: 4.567454013 | L171: 4.673651825 | M171: 4.728351608 | N171: 5.449572169 | O171: 5.526508327 | P171: 5.755238256 | Q171: 5.41566954 | R171: 5.302655251 | S171: 5.158528755 | T171: 4.658975681 | U171: 4.937666037 | V171: 5.290438848 | W171: 4.143903637 | X171: 4.154716587 | Y171: 4.523504715 | Z171: -0.4278225395 | AA171: -1.303064605
A172: Vitvi00g01147 | B172: 3.050843932 | C172: 3.219883289 | D172: 3.535642167 | E172: 3.627235473 | F172: 2.530056629 | G172: 3.082451101 | H172: 3.744246563 | I172: 2.602075931 | J172: 3.864719965 | K172: 3.959038159 | L172: 3.1578517 | M172: 3.906992334 | N172: 3.380683388 | O172: 2.455436537 | P172: 3.742715072 | Q172: 3.11863347 | R172: 3.793375285 | S172: 3.762900183 | T172: 3.142662901 | U172: 3.346948659 | V172: 3.496377751 | W172: 3.161262144 | X172: 4.104002029 | Y172: 3.311815718 | Z172: 0.4058376019 | AA172: 0.332748298
A173: Vitvi00g01148 | B173: 0 | C173: 0 | D173: 0 | E173: 0.5273078361 | F173: 0 | G173: 0.3953365587 | H173: 0 | I173: 0 | J173: 0.6728714607 | K173: 0.03125999325 | L173: 0.4013224895 | M173: 0.4756647224 | N173: 0 | O173: 0.008897315396 | P173: 6.99E-07 | Q173: 0 | R173: 0 | S173: 0 | T173: 0 | U173: 0.4096465177 | V173: 0.6315246391 | W173: 0.3343079001 | X173: 0 | Y173: 0 | Z173: 0.3027490684 | AA173: 0.1084699619
A174: Vitvi00g01149 | B174: 0.4383553066 | C174: 0.3762233125 | D174: 0.3538241843 | E174: 0.4419717406 | F174: 0.3710291767 | G174: 0.4281109826 | H174: 0.5925562131 | I174: 0.2066306188 | J174: 0.174616247 | K174: 0.4766729952 | L174: 0.3476417233 | M174: 0.3500496679 | N174: 0.7719551704 | O174: 0.4399501302 | P174: 0 | Q174: 0.3094187166 | R174: 0 | S174: 0 | T174: 0.5966598881 | U174: 0.4469852642 | V174: 0.3559476776 | W174: 0 | X174: 0 | Y174: 0.2712690956 | Z174: 0.001987194326 | AA174: -0.3135454017
A175: Vitvi00g01150 | B175: 0 | C175: 0 | D175: 0 | E175: 0 | F175: 0 | G175: 0 | H175: 0 | I175: 0 | J175: 0 | K175: 0 | L175: 0 | M175: 0 | N175: 0.2914421125 | O175: 0 | P175: 0 | Q175: 0 | R175: 0 | S175: 0 | T175: 0 | U175: 0 | V175: 0 | W175: 0 | X175: 0 | Y175: 0 | Z175: 0 | AA175: -0.09714737084
A176: Vitvi00g01151 | B176: 5.389767379 | C176: 5.156127239 | D176: 5.34236633 | E176: 5.819518402 | F176: 5.241207371 | G176: 5.332674659 | H176: 5.577035544 | I176: 5.753407874 | J176: 5.410028029 | K176: 5.231658618 | L176: 5.531417713 | M176: 5.354100624 | N176: 3.901005537 | O176: 4.734781369 | P176: 3.96832395 | Q176: 3.334178154 | R176: 4.305643676 | S176: 3.82274788 | T176: 3.941962425 | U176: 3.478694059 | V176: 3.232325561 | W176: 3.926177915 | X176: 3.809636837 | Y176: 3.827148051 | Z176: 0.07630533548 | AA176: -0.3470493509
A177: Vitvi00g01163 | B177: 0 | C177: 0 | D177: 1.548207161 | E177: 2.283225221 | F177: 1.736358186 | G177: 1.613003153 | H177: 0 | I177: 2.567878413 | J177: 1.214284223 | K177: 0 | L177: 0 | M177: 1.204027652 | N177: 0 | O177: 0 | P177: 3.237515459 | Q177: 0 | R177: 0 | S177: 1.981087079 | T177: 0 | U177: 0 | V177: 0 | W177: 2.13931318 | X177: 0 | Y177: 0 | Z177: -0.114726503 | AA177: -0.3660674262
A178: Vitvi00g01165 | B178: 0 | C178: 0 | D178: 0 | E178: 0 | F178: 0 | G178: 0.8413887398 | H178: 0 | I178: 0 | J178: 0 | K178: 0 | L178: 0 | M178: 0 | N178: 0 | O178: 0 | P178: 0 | Q178: 0 | R178: 0 | S178: 0 | T178: 0 | U178: 0 | V178: 0 | W178: 0 | X178: 0 | Y178: 0 | Z178: 0 | AA178: 0
A179: Vitvi00g01166 | B179: 0 | C179: 0 | D179: 0 | E179: 0 | F179: 0 | G179: 0 | H179: 0 | I179: 0 | J179: 0 | K179: 0 | L179: 0 | M179: 0 | N179: 0 | O179: 0 | P179: 0 | Q179: 0 | R179: 0 | S179: 0 | T179: 1.450804998 | U179: 0 | V179: 0 | W179: 0 | X179: 0 | Y179: 0 | Z179: 0 | AA179: 0
A180: Vitvi00g01167 | B180: 1.318493516 | C180: 0.9768438913 | D180: 2.133979787 | E180: 1.074807785 | F180: 2.202383115 | G180: 1.558550448 | H180: 1.910787371 | I180: 1.93158219 | J180: 1.433063945 | K180: 1.767007805 | L180: 1.787871545 | M180: 1.23706182 | N180: 1.99002888 | O180: 2.232581766 | P180: 2.589210181 | Q180: 1.796231889 | R180: 1.506990449 | S180: 1.693879835 | T180: 2.375299119 | U180: 1.907921285 | V180: 1.818482945 | W180: 2.189073105 | X180: 1.707675583 | Y180: 2.178873801 | Z180: 0.1208746587 | AA180: -0.2453994455
A181: Vitvi00g01168 | B181: 5.535085691 | C181: 5.749258879 | D181: 5.422044798 | E181: 5.532134692 | F181: 5.375482302 | G181: 5.324007711 | H181: 5.657133003 | I181: 5.718805158 | J181: 5.551116177 | K181: 5.627856076 | L181: 5.708379669 | M181: 5.802409449 | N181: 5.13449684 | O181: 5.381557188 | P181: 5.186026657 | Q181: 4.705526805 | R181: 5.131326203 | S181: 5.463040306 | T181: 5.251990302 | U181: 5.104343435 | V181: 5.521148508 | W181: 5.793065917 | X181: 5.452710951 | Y181: 5.560146045 | Z181: 0.1440852754 | AA181: 0.3679474093
A182: Vitvi00g01169 | B182: 0.2211617249 | C182: 0 | D182: 0 | E182: 0 | F182: 0 | G182: 0 | H182: 0 | I182: 0 | J182: 0 | K182: 0 | L182: 0 | M182: 0.2691619552 | N182: 0 | O182: 0 | P182: 0 | Q182: 0.9561063816 | R182: 0.5985568496 | S182: 0.2877690516 | T182: 0 | U182: 0 | V182: 0 | W182: 0.2807241343 | X182: 0 | Y182: 0 | Z182: 0.01600007675 | AA182: 0.09357471143
A183: Vitvi00g01173 | B183: 0.2419751573 | C183: 0.594324442 | D183: 0.3523450982 | E183: 0 | F183: 0.3301457472 | G183: 0 | H183: 0.07878098735 | I183: 0.6236466069 | J183: 0.4840970297 | K183: 0 | L183: 0 | M183: 0.891316389 | N183: 0.3212510389 | O183: 0.4748745067 | P183: 0 | Q183: 0.3623917531 | R183: 0 | S183: 0.3797220624 | T183: 0.7232405944 | U183: 0.9037672518 | V183: 0.3599950729 | W183: 0.5097929806 | X183: 1.075877663 | Y183: 0 | Z183: -0.09910943617 | AA183: 0.2631816994
A184: Vitvi00g01174 | B184: 0.5629317674 | C184: 0 | D184: 0.5227672503 | E184: 0.7898567707 | F184: 0.4436671269 | G184: 0.3908514945 | H184: 0.8295588639 | I184: 0.5947136239 | J184: 0.8716731272 | K184: 0.7570537803 | L184: 0.9825984079 | M184: 0.8229358764 | N184: 0 | O184: 1.028764194 | P184: 4.99E-07 | Q184: 0.4126377905 | R184: 0.6637439629 | S184: 0.8697809037 | T184: 0.05821509691 | U184: 0.7368277988 | V184: 0.8835530965 | W184: 1.171578756 | X184: 0.00908647112 | Y184: 0.3450416575 | Z184: 0.492296349 | AA184: 0.1656473973
A185: Vitvi00g01175 | B185: 1.73328403 | C185: 1.980121507 | D185: 1.625905396 | E185: 1.863200622 | F185: 1.497639403 | G185: 1.210841536 | H185: 1.756455082 | I185: 1.661328766 | J185: 1.595239397 | K185: 1.46742416 | L185: 1.993017313 | M185: 1.757670564 | N185: 1.472556381 | O185: 0.5149407605 | P185: 0.949837566 | Q185: 1.305450873 | R185: 1.291247125 | S185: 1.070748789 | T185: 0.8141765199 | U185: 0.6487238418 | V185: 1.753966029 | W185: 1.05465514 | X185: 1.095146827 | Y185: 1.530777022 | Z185: -0.04039963187 | AA185: 0.2477480939
A186: Vitvi00g01182 | B186: 0 | C186: 0 | D186: 0 | E186: 0 | F186: 0.5136887263 | G186: 1.254956554 | H186: 0.1155825475 | I186: 0.3387240156 | J186: 0.2166469294 | K186: 0 | L186: 0.4719055327 | M186: 0 | N186: 0.1242748368 | O186: 0 | P186: 0 | Q186: 0 | R186: 0.2179413593 | S186: 0.2126793976 | T186: 0.1449361721 | U186: 0.1920231081 | V186: 0 | W186: 0 | X186: 0.3680891876 | Y186: 0 | Z186: 0.1573018442 | AA186: 0.08127145028
A187: Vitvi00g01183 | B187: 6.355305976 | C187: 6.654945626 | D187: 6.281679905 | E187: 6.159684131 | F187: 6.101244633 | G187: 5.3722238 | H187: 5.110318464 | I187: 5.753893648 | J187: 5.393567881 | K187: 4.666996912 | L187: 5.300210616 | M187: 5.166492541 | N187: 5.668023368 | O187: 6.561674747 | P187: 5.797342866 | Q187: 5.661181758 | R187: 5.644673623 | S187: 5.429240115 | T187: 5.444925005 | U187: 4.989858345 | V187: 5.313384356 | W187: 4.591190533 | X187: 4.213301849 | Y187: 4.480692204 | Z187: -1.386077146 | AA187: -1.580618798
A188: Vitvi00g01185 | B188: 0 | C188: 0 | D188: 0 | E188: 0 | F188: 0 | G188: 0 | H188: 0 | I188: 0 | J188: 0.0019774122 | K188: 0 | L188: 0 | M188: 0 | N188: 0 | O188: 0 | P188: 0 | Q188: 0 | R188: 0 | S188: 0 | T188: 0 | U188: 3.23E-05 | V188: 0 | W188: 0 | X188: 0 | Y188: 0 | Z188: 0 | AA188: 0
A189: Vitvi00g01188 | B189: 1.552627007 | C189: 1.274353185 | D189: 0.6946204195 | E189: 1.412374104 | F189: 2.010663581 | G189: 1.861510755 | H189: 0.8288598827 | I189: 1.845815083 | J189: 1.847006004 | K189: 2.201580298 | L189: 1.477589761 | M189: 2.367759678 | N189: 0 | O189: 1.000212016 | P189: 0 | Q189: 0.7382356882 | R189: 0 | S189: 0.7830316583 | T189: 1.26783696 | U189: 0.9086026257 | V189: 0 | W189: 1.711109284 | X189: 1.871143349 | Y189: 1.727091344 | Z189: 0.8417763748 | AA189: 1.43637732
A190: Vitvi00g01189 | B190: 0 | C190: 0 | D190: 0 | E190: 0 | F190: 0 | G190: 0 | H190: 3.208738085 | I190: 0 | J190: 2.325872836 | K190: 0 | L190: 3.136255589 | M190: 0 | N190: 0 | O190: 2.831836187 | P190: 0 | Q190: 0 | R190: 0 | S190: 0 | T190: 0 | U190: 0 | V190: 0 | W190: 2.210527543 | X190: 0 | Y190: 0 | Z190: 1.04541853 | AA190: -0.2071028813
A191: Vitvi00g01190 | B191: 0.9798598333 | C191: 1.302400492 | D191: 1.558314141 | E191: 1.055736717 | F191: 0.6220116398 | G191: 0 | H191: 0.5967679847 | I191: 0 | J191: 0.6278372965 | K191: 1.021926386 | L191: 0 | M191: 0 | N191: 0 | O191: 0 | P191: 0 | Q191: 0 | R191: 0 | S191: 1.271743223 | T191: 0 | U191: 0.4027800337 | V191: 1.339731093 | W191: 0.4562145078 | X191: 0 | Y191: 1.399556255 | Z191: -0.9395493601 | AA191: 0.6185902543
A192: Vitvi00g01191 | B192: 4.58215116 | C192: 3.64255744 | D192: 4.496114884 | E192: 0 | F192: 4.649136149 | G192: 3.71990204 | H192: 4.60656122 | I192: 5.338431292 | J192: 0 | K192: 5.9058279 | L192: 5.496874028 | M192: 0 | N192: 6.238079284 | O192: 0 | P192: 0 | Q192: 4.28185979 | R192: 5.134335466 | S192: 0 | T192: 4.900026073 | U192: 5.260605013 | V192: 4.585380748 | W192: 0 | X192: 4.284518624 | Y192: 4.57833164 | Z192: -0.4393738517 | AA192: 0.87492366
A193: Vitvi00g01193 | B193: 0 | C193: 0 | D193: 0 | E193: 0 | F193: 0 | G193: 0 | H193: 0 | I193: 0 | J193: 1.002328606 | K193: 0 | L193: 0 | M193: 0 | N193: 0 | O193: 0 | P193: 0 | Q193: 0 | R193: 0 | S193: 0 | T193: 0 | U193: 0 | V193: 0 | W193: 0 | X193: 0 | Y193: 0 | Z193: 0 | AA193: 0
A194: Vitvi00g01194 | B194: 0 | C194: 1.678640669 | D194: 1.249461786 | E194: 0 | F194: 0.8511010919 | G194: 1.751654613 | H194: 1.323105971 | I194: 1.409627796 | J194: 1.963714824 | K194: 0 | L194: 1.276426062 | M194: 1.33870259 | N194: 0 | O194: 1.185403973 | P194: 0 | Q194: 2.452748568 | R194: 1.164061389 | S194: 1.363604123 | T194: 2.008210051 | U194: 0.7668916437 | V194: 0 | W194: 2.056421568 | X194: 0 | Y194: 2.614393875 | Z194: -0.1043246012 | AA194: 1.161803823
A195: Vitvi00g01196 | B195: 2.162111194 | C195: 1.405082282 | D195: 0.9057325031 | E195: 2.250350426 | F195: 2.464494556 | G195: 2.197120559 | H195: 2.289238453 | I195: 2.707863113 | J195: 2.532401833 | K195: 2.707142262 | L195: 2.602801481 | M195: 2.586378329 | N195: 2.323458349 | O195: 1.259206307 | P195: 1.878958682 | Q195: 1.31663143 | R195: 1.028860049 | S195: 2.363214625 | T195: 2.119870156 | U195: 1.880819323 | V195: 1.536478412 | W195: 1.846716729 | X195: 2.217986324 | Y195: 1.806254816 | Z195: 1.141132031 | AA195: 0.1364448435
A196: Vitvi00g01198 | B196: 0 | C196: 0 | D196: 2.225956256 | E196: 0 | F196: 0 | G196: 0 | H196: 0 | I196: 0 | J196: 0 | K196: 2.367814792 | L196: 0 | M196: 0 | N196: 0 | O196: 0 | P196: 0 | Q196: 0 | R196: 0 | S196: 3.951749555 | T196: 0 | U196: 0 | V196: 0 | W196: 0 | X196: 0 | Y196: 0 | Z196: =AVERAGE(K196:M196)-AVERAGE(B196:D196) -> 0.04728617869 | AA196: =AVERAGE(W196:Y196)-AVERAGE(N196:P196) -> 0
A197: Vitvi00g01201 | B197: 0 | C197: 0 | D197: 0 | E197: 0 | F197: 0 | G197: 0 | H197: 0 | I197: 0.0003258965049 | J197: 0 | K197: 0.9221087268 | L197: 0.5844369249 | M197: 0 | N197: 0 | O197: 0 | P197: 0 | Q197: 0 | R197: 1.133315685 | S197: 0 | T197: 0 | U197: 0 | V197: 0 | W197: 0 | X197: 0 | Y197: 0 | Z197: 0.5021818839 | AA197: 0
A198: Vitvi00g01202 | B198: 0.3432887939 | C198: 0.4790599095 | D198: 0.2157418705 | E198: 0 | F198: 0 | G198: 0.1791742679 | H198: 0.5052924145 | I198: 0.5905412865 | J198: 0.3155164261 | K198: 0.265184675 | L198: 0.5777194366 | M198: 0.6117238251 | N198: 0.4060210041 | O198: 0.2075694146 | P198: 0.3952731877 | Q198: 0.3611330501 | R198: 0.4718545002 | S198: 0.6466651175 | T198: 0.2503402545 | U198: 0.1782480449 | V198: 0 | W198: 0.457085615 | X198: 0.641996836 | Y198: 0.8061607703 | Z198: 0.1388457876 | AA198: 0.298793205
A199: Vitvi00g01203 | B199: 0 | C199: 0.6298919063 | D199: 0.2220635182 | E199: 0.2870382667 | F199: 0 | G199: 0 | H199: 0.2792740298 | I199: 0.2985510495 | J199: 0.2452502861 | K199: 0.4325681378 | L199: 0.5483802317 | M199: 0 | N199: 0 | O199: 0.5359892267 | P199: 0 | Q199: 0.5631483281 | R199: 0.3295505527 | S199: 0 | T199: 0.6463284245 | U199: 0.3142148311 | V199: 0 | W199: 0.5150586796 | X199: 0.3763127713 | Y199: 0.5392076767 | Z199: 0.04299764833 | AA199: 0.2981966336
A200: Vitvi00g01204 | B200: 1.335473219 | C200: 0 | D200: 0.5397755754 | E200: 0 | F200: 0.6168365595 | G200: 0.6127924875 | H200: 0 | I200: 1.118899415 | J200: 0 | K200: 1.599643218 | L200: 1.759683995 | M200: 0 | N200: 0 | O200: 0 | P200: 0 | Q200: 0.9780660888 | R200: 0 | S200: 0 | T200: 0 | U200: 0 | V200: 0 | W200: 0.5953197066 | X200: 0 | Y200: 0 | Z200: 0.494692806 | AA200: 0.1984399022
... 2050 more rows
